Workbook

Sheet Leírás
A1: A kalkuláció lépései:
A2: 1. A "dINC" munkalap "J7:L25" tartományába másolandók a HUF, EUR és USD devizanemekhez tartozó kockázatmentes hozamgörbékből az EBA IRRBB adatszolgáltatásnak (J_05.00) megfelelő idősávok közepére számított, folytonos zérókupon kamatlábak.
A3: 2. A "dINC" munkalap "P13:R25" tartományába illesztendők a HUF, EUR és USD devizanemek esetében, a valós értéken értékelt, számvitelileg fedezeti könyvelésbe nem vont ügyletek előrejelzett, a számítás vonatkozási napját követő egy naptári éven túli nettó pénzáramlásai az EBA IRRBB adatszolgáltatásnak (J_05.00) megfelelő idősávonként (forintban, egységnyi nagyságrendben).
A4: 3. A "dNII" munkalap "A:F" oszlopaiban szerepeltetendők a HUF, EUR és USD devizanemek esetében előrejelzett, a számítás vonatkozási napját követő egy naptári éven belüli tőke pénzáramlások, és azon ügyletek megfelelő paraméterei, melyekhez ezen pénzáramlások kapcsolódnak. A devizanem oszlopban a "HUF", "EUR" vagy "USD" értéket lehet használni. A pénzáramlás összegét forintban, egységnyi nagyságrendben kell megadni. A hátralévő idő a pénzáramlás esedékességének időpontja és a dNII kalkuláció egy éves időhorizontjának vége közötti idő években kifejezve. Az átárazódási periódus a "Kódlista" munkalapon feltüntetett értékkészletnek megfelelően töltendő. Az ügyleti/piaci kamatpadló oszlopban az ügyleti és piaci kamatpadló közül az effektív (magasabb értékű) tüntetendő fel. (A "G:I" oszlopokban szereplő képleteket nem szükséges frissíteni, a szimulációs makró futtatásakor - ld. 4. lépés - automatikusan törlésre/kitöltésre kerülnek a megfelelő sorokban.)
A5: 4. A szimuláció a "dINC" munkalapon található "Szimuláció" elnevezésű gombbal indítható el (a futtatási idő kb. 1-2 perc). A szimulált dINC eredmények a "Szimuláció" munkalapon tekinthetők meg.
A6: 5. A szimuláció sikeres elvégzését követően a dINC-re vonatkozó diverzifikációs hatás százalékos mértéke (D%dINC) a "dINC" munkalap "F22" cellájában jelenik meg.

Sheet Kódlista
A1: Átárazódási periódus (eredeti)
A2: Megnevezés | B2: Kódkészlet
A3: Overnight | B3: ON
A4: ON< x ≦1M | B4: 1M
A5: 1M< x ≦3M | B5: 3M
A6: 3M< x ≦6M | B6: 6M
A7: 6M< x ≦9M | B7: 9M
A8: 9M< x ≦1Y | B8: 1Y
A9: 1Y< x ≦2Y | B9: 2Y
A10: 2Y< x ≦3Y | B10: 3Y
A11: 3Y< x ≦5Y | B11: 5Y
A12: 5Y< x ≦10Y | B12: 10Y
A13: 10Y< x ≦15Y | B13: 15Y
A14: 15Y< x ≦20Y | B14: 20Y
A15: x > 20Y | B15: 20Y_

Sheet dINC
C2: HUF | D2: EUR | E2: USD | I2: HUF | J2: EUR | K2: USD | N2: HUF | O2: EUR | P2: USD | Q2: Portfolió | U2: Sokkok | V2: HUF_short | W2: HUF_par | X2: HUF_long | Y2: EUR_short | Z2: EUR_par | AA2: EUR_long | AB2: USD_short | AC2: USD_par | AD2: USD_long
B3: dNII | C3: =SUM(IF(INDIRECT("dNII!A2:A"&COUNTA(dNII!A:A))=C2,INDIRECT("dNII!I2:I"&COUNTA(dNII!A:A)),0)) -> 639975652.4 | D3: =SUM(IF(INDIRECT("dNII!A2:A"&COUNTA(dNII!B:B))=D2,INDIRECT("dNII!I2:I"&COUNTA(dNII!B:B)),0)) -> -1296504505 | E3: =SUM(IF(INDIRECT("dNII!A2:A"&COUNTA(dNII!C:C))=E2,INDIRECT("dNII!I2:I"&COUNTA(dNII!C:C)),0)) -> 4682151.056 | H3: dFV | I3: =SUMPRODUCT(J28:J46,P28:P46) -> 245030266.9 | J3: =SUMPRODUCT(K28:K46,Q28:Q46) -> -3661202.045 | K3: =SUMPRODUCT(L28:L46,R28:R46) -> -544922.5214 | M3: dINC | N3: =C3+I3 -> 885005919.3 | O3: =D3+J3 -> -1300165707 | P3: =E3+K3 -> 4137228.535 | Q3: =SUM(N3:P3) -> -411022559.2 | U3: N(0,1) | V3: =_xlfn.NORM.S.INV(RAND()) -> -0.2417049896 | W3: =_xlfn.NORM.S.INV(RAND()) -> -0.6496453955 | X3: 1.1824261 | Y3: -1.395682686 | Z3: 1.105403173 | AA3: 0.6960417649 | AB3: 0.4762247265 | AC3: -0.7440277635 | AD3: 1.000282603
U4: N(0,σ)ρ | V4: =TRANSPOSE(MMULT($V$33:$AD$41,TRANSPOSE($V$3:$AD$3))) -> -0.004675450587 | W4: -0.00860096371 | X4: 0.001641401187 | Y4: -0.01239175184 | Z4: 0.001375785014 | AA4: 0.003708975019 | AB4: -0.004285264365 | AC4: -0.00111344155 | AD4: 0.003672778721
B6: Átárazódási periódus (9R1) | C6: T (hónap) | D6: Kamat sokkHUF | E6: Kamat sokkEUR | F6: Kamat sokkUSD | H6: Idősáv (9R1) | I6: T (hónap) | J6: rzero HUF | K6: rzero EUR | L6: rzero USD | M6: DFHUF | N6: DFEUR | O6: DFUSD | P6: CFHUF (FV ügyletek) | Q6: CFEUR (FV ügyletek) | R6: CFUSD (FV ügyletek) | S6: Floor | U6: Korreláció | V6: HUF_short | W6: HUF_par | X6: HUF_long | Y6: EUR_short | Z6: EUR_par | AA6: EUR_long | AB6: USD_short | AC6: USD_par | AD6: USD_long
B7: ON | C7: 0.03333333333 | D7: =IF(C7<60,$V$4+($W$4-$V$4)/60*C7,$W$4+($X$4-$W$4)/180*(C7-60)) -> -0.004677631427 | E7: =IF(C7<60,$Y$4+($Z$4-$Y$4)/60*C7,$Z$4+($AA$4-$Z$4)/180*(C7-60)) -> -0.01238410321 | F7: =IF(C7<60,$AB$4+($AC$4-$AB$4)/60*C7,$AC$4+($AD$4-$AC$4)/180*(C7-60)) -> -0.004283502241 | H7: ON | I7: 0.03333333333 | J7: 0.1507773771 | K7: 0.0339204154 | L7: 0.05052398076 | M7: =EXP(-J7*$I7/12) -> 0.9995812616 | N7: =EXP(-K7*$I7/12) -> 0.9999057811 | O7: =EXP(-L7*$I7/12) -> 0.9998596655 | S7: -0.01499916667 | U7: HUF_short | V7: 1 | W7: 0.5907308232 | X7: 0.3386694611 | Y7: 0.0556986393 | Z7: 0.03699604506 | AA7: 0.0593502729 | AB7: 0.1245611645 | AC7: 0.1013862607 | AD7: 0.05682245736
B8: 1M | C8: 1 | D8: -0.004740875805 | E8: -0.01216229289 | F8: -0.004232400652 | H8: ON_1M | I8: 0.5 | J8: 0.1507773771 | K8: 0.03392087374 | L8: 0.05052976536 | M8: 0.9937373022 | N8: 0.9985876286 | O8: 0.9978968079 | S8: -0.0149875 | U8: HUF_par | V8: 0.5907308232 | W8: 1 | X8: 0.7713373493 | Y8: -0.07653530031 | Z8: 0.2303576495 | AA8: 0.2747209435 | AB8: 0.07444221018 | AC8: 0.3363309176 | AD8: 0.2769760408
B9: 3M | C9: 3 | D9: -0.004871726243 | E9: -0.011703375 | F9: -0.004126673224 | H9: 1M_3M | I9: 2 | J9: 0.1507773771 | K9: 0.03491066255 | L9: 0.05169119176 | M9: 0.9751835563 | N9: 0.9941984506 | O9: 0.9914218059 | S9: -0.01495 | U9: HUF_long | V9: 0.3386694611 | W9: 0.7713373493 | X9: 1 | Y9: -0.002456256705 | Z9: 0.3093311649 | AA9: 0.3887509219 | AB9: 0.1038362319 | AC9: 0.3873270631 | AD9: 0.4119827677
B10: 6M | C10: 6 | D10: -0.005068001899 | E10: -0.01101499816 | F10: -0.003968082084 | H10: 3M_6M | I10: 4.5 | J10: 0.1465038447 | K10: 0.03635358842 | L10: 0.05261659223 | M10: 0.9465429404 | N10: 0.9864599073 | O10: 0.9804621645 | S10: -0.0148875 | U10: EUR_short | V10: 0.0556986393 | W10: -0.07653530031 | X10: -0.002456256705 | Y10: 1 | Z10: 0.5136867374 | AA10: 0.2579712741 | AB10: 0.5884827387 | AC10: 0.2599924609 | AD10: 0.3106378455
B11: 9M | C11: 9 | D11: -0.005264277555 | E11: -0.01032662131 | F11: -0.003809490943 | H11: 6M_9M | I11: 7.5 | J11: 0.1357424999 | K11: 0.0372575647 | L11: 0.05314536107 | M11: 0.9186601194 | N11: 0.9769830482 | O11: 0.9673297383 | S11: -0.0148125 | U11: EUR_par | V11: 0.03699604506 | W11: 0.2303576495 | X11: 0.3093311649 | Y11: 0.5136867374 | Z11: 1 | AA11: 0.8220762061 | AB11: 0.3295762671 | AC11: 0.7123592233 | AD11: 0.6596513019
B12: 1Y | C12: 12 | D12: -0.005460553211 | E12: -0.009638244471 | F12: -0.003650899802 | H12: 9M_12M | I12: 10.5 | J12: 0.126428916 | K12: 0.03759407027 | L12: 0.05287101423 | M12: 0.895274144 | N12: 0.9676403389 | O12: 0.9547916427 | S12: -0.0147375 | U12: EUR_long | V12: 0.0593502729 | W12: 0.2747209435 | X12: 0.3887509219 | Y12: 0.2579712741 | Z12: 0.8220762061 | AA12: 1 | AB12: 0.1986258355 | AC12: 0.6646881833 | AD12: 0.7377598502
B13: 2Y | C13: 24 | D13: -0.006245655836 | E13: -0.0068847371 | F13: -0.003016535239 | H13: 12M_18M | I13: 15 | J13: 0.1143361458 | K13: 0.0372051015 | L13: 0.05115949576 | M13: 0.866823254 | N13: 0.9545584734 | O13: 0.9380524922 | P13: 4393108619 | Q13: -16421127.74 | R13: -2440877.699 | S13: -0.014625 | U13: USD_short | V13: 0.1245611645 | W13: 0.07444221018 | X13: 0.1038362319 | Y13: 0.5884827387 | Z13: 0.3295762671 | AA13: 0.1986258355 | AB13: 1 | AC13: 0.3662410314 | AD13: 0.3038866494
B14: 3Y | C14: 36 | D14: -0.007030758461 | E14: -0.004131229728 | F14: -0.002382170676 | H14: 18M_2Y | I14: 21 | J14: 0.1014331539 | K14: 0.03616022054 | L14: 0.04835458559 | M14: 0.8373542842 | N14: 0.938680244 | O14: 0.9188609032 | P14: 49939357.93 | Q14: -287845837.3 | R14: -127699.0536 | S14: -0.014475 | U14: USD_par | V14: 0.1013862607 | W14: 0.3363309176 | X14: 0.3873270631 | Y14: 0.2599924609 | Z14: 0.7123592233 | AA14: 0.6646881833 | AB14: 0.3662410314 | AC14: 1 | AD14: 0.8342911761
B15: 5Y | C15: 60 | D15: -0.00860096371 | E15: 0.001375785014 | F15: -0.00111344155 | H15: 2Y_3Y | I15: 30 | J15: 0.08931764792 | K15: 0.03423940049 | L15: 0.04474293624 | M15: 0.7998795543 | N15: 0.9179627181 | O15: 0.8941718104 | P15: 1171317050 | Q15: -27903545.8 | R15: -30960341.74 | S15: -0.01425 | U15: USD_long | V15: 0.05682245736 | W15: 0.2769760408 | X15: 0.4119827677 | Y15: 0.3106378455 | Z15: 0.6596513019 | AA15: 0.7377598502 | AB15: 0.3038866494 | AC15: 0.8342911761 | AD15: 1
B16: 10Y | C16: 120 | D16: -0.005186842078 | E16: 0.002153515016 | F16: 0.0004819652069 | H16: 3Y_4Y | I16: 42 | J16: 0.07876103935 | K16: 0.03194011958 | L16: 0.04120251538 | M16: 0.7590682097 | N16: 0.8942316523 | O16: 0.8657069663 | P16: 7052387649 | Q16: -38412702.55 | R16: -8095785.514 | S16: -0.01395
B17: 15Y | C17: 180 | D17: -0.001772720445 | E17: 0.002931245017 | F17: 0.002077371964 | H17: 4Y_5Y | I17: 54 | J17: 0.07263324555 | K17: 0.03020748439 | L17: 0.0389096437 | M17: 0.7211921986 | N17: 0.8729005216 | O17: 0.8393786219 | P17: 129991418.5 | Q17: -12485123.11 | R17: -54604561.07 | S17: -0.01365 | U17: Szórás | V17: HUF_short | W17: HUF_par | X17: HUF_long | Y17: EUR_short | Z17: EUR_par | AA17: EUR_long | AB17: USD_short | AC17: USD_par | AD17: USD_long
B18: 20Y | C18: 240 | D18: 0.001641401187 | E18: 0.003708975019 | F18: 0.003672778721 | H18: 5Y_6Y | I18: 66 | J18: 0.06903410123 | K18: 0.02904676417 | L18: 0.03743147289 | M18: 0.6840751105 | N18: 0.8523507121 | O18: 0.8139363575 | P18: 9871943.746 | Q18: -8828840.611 | R18: -1191728.075 | S18: -0.01335 | U18: Sztenderd sokk (s) | V18: 0.045 | W18: 0.03 | X18: 0.02 | Y18: 0.025 | Z18: 0.02 | AA18: 0.01 | AB18: 0.03 | AC18: 0.02 | AD18: 0.015
B19: 20Y_ | C19: 240 | D19: 0.001641401187 | E19: 0.003708975019 | F19: 0.003672778721 | H19: 6Y_7Y | I19: 78 | J19: 0.06694102705 | K19: 0.02830354884 | L19: 0.03643198642 | M19: 0.6471891513 | N19: 0.8319582103 | O19: 0.7891428586 | P19: 766879933.1 | Q19: -268049.1271 | R19: -158062.3926 | S19: -0.01305 | U19: Szórás (σ) | V19: 0.01934362462 | W19: 0.01289574974 | X19: 0.008597166496 | Y19: 0.01074645812 | Z19: 0.008597166496 | AA19: 0.004298583248 | AB19: 0.01289574974 | AC19: 0.008597166496 | AD19: 0.006447874872
H20: 7Y_8Y | I20: 90 | J20: 0.06571927557 | K20: 0.02787413445 | L20: 0.0357073671 | M20: 0.6108556702 | N20: 0.811349792 | O20: 0.7650567589 | P20: 9759887.094 | Q20: -77884.58129 | R20: -165701.0586 | S20: -0.01275
H21: 8Y_9Y | I21: 102 | J21: 0.06493299292 | K21: 0.02760141666 | L21: 0.03519893985 | M21: 0.5758371178 | N21: 0.7908776177 | O21: 0.7414177935 | P21: 965818594.7 | Q21: 887977.7498 | R21: -14849.59946 | S21: -0.01245 | U21: Kovariancia | V21: HUF_short | W21: HUF_par | X21: HUF_long | Y21: EUR_short | Z21: EUR_par | AA21: EUR_long | AB21: USD_short | AC21: USD_par | AD21: USD_long
E22: D%dINC | F22: =Szimuláció!L2 -> -0.3308292144 | H22: 9Y_10Y | I22: 114 | J22: 0.06449823755 | K22: 0.02742661692 | L22: 0.03484661045 | M22: 0.5418677794 | N22: 0.7706254195 | O22: 0.718174431 | P22: 27768674.21 | Q22: -3478585.155 | R22: -204397.0437 | S22: -0.01215 | U22: HUF_short | V22: 0.0003741758133 | W22: 0.0001473581241 | X22: 5.632085379e-05 | Y22: 1.157837981e-05 | Z22: 6.152455665e-06 | AA22: 4.934985917e-06 | AB22: 3.107185001e-05 | AC22: 1.68605718e-05 | AD22: 7.087196398e-06
H23: 10Y_15Y | I23: 150 | J23: 0.06394122093 | K23: 0.02745876706 | L23: 0.03435202024 | M23: 0.4496592246 | N23: 0.7094717583 | O23: 0.6508993526 | P23: 40004982.59 | Q23: -28676110.8 | R23: -427500.4962 | S23: -0.01125 | U23: HUF_par | V23: 0.0001473581241 | W23: 0.0001663003614 | X23: 8.551578666e-05 | Y23: -1.060654009e-05 | Z23: 2.553904025e-05 | AA23: 1.522873073e-05 | AB23: 1.237976646e-05 | AC23: 3.728796878e-05 | AD23: 2.303060785e-05
H24: 15Y_20Y | I24: 210 | J24: 0.06340046047 | K24: 0.02697081947 | L24: 0.03384684713 | M24: 0.3297211248 | N24: 0.6237601618 | O24: 0.553042833 | P24: 380418.7725 | Q24: -1925359.96 | R24: -41077.62483 | S24: -0.00975 | U24: HUF_long | V24: 5.632085379e-05 | W24: 8.551578666e-05 | X24: 7.391127175e-05 | Y24: -2.26931321e-07 | Z24: 2.286305979e-05 | AA24: 1.436653752e-05 | AB24: 1.151200193e-05 | AC24: 2.862783582e-05 | AD24: 2.283762773e-05
H25: 20Y_ | I25: 240 | J25: 0.0634779395 | K25: 0.02644465556 | L25: 0.03350158687 | M25: 0.2809555549 | N25: 0.5892568507 | O25: 0.5116923378 | P25: -202547.2372 | Q25: 9808.971035 | R25: 0 | S25: -0.009 | U25: EUR_short | V25: 1.157837981e-05 | W25: -1.060654009e-05 | X25: -2.26931321e-07 | Y25: 0.0001154863621 | Z25: 4.745905006e-05 | AA25: 1.191686559e-05 | AB25: 8.155407679e-05 | AC25: 2.402046679e-05 | AD25: 2.152466083e-05
U26: EUR_par | V26: 6.152455665e-06 | W26: 2.553904025e-05 | X26: 2.286305979e-05 | Y26: 4.745905006e-05 | Z26: 7.391127175e-05 | AA26: 3.038034893e-05 | AB26: 3.653910156e-05 | AC26: 5.265137614e-05 | AD26: 3.656674998e-05
H27: Idősáv (9R1) | I27: T (hónap) | J27: PV(CF)HUF | K27: PV(CF)EUR | L27: PV(CF)USD | M27: Kamat sokkHUF | N27: Kamat sokkEUR | O27: Kamat sokkUSD | P27: SokkHUF | Q27: SokkEUR | R27: SokkUSD | U27: EUR_long | V27: 4.934985917e-06 | W27: 1.522873073e-05 | X27: 1.436653752e-05 | Y27: 1.191686559e-05 | Z27: 3.038034893e-05 | AA27: 1.847781794e-05 | AB27: 1.101051608e-05 | AC27: 2.456397447e-05 | AD27: 2.044828829e-05
H28: ON | I28: 0.03333333333 | M28: =MAX(IF(I28<60,$V$4+($W$4-$V$4)/60*I28,$W$4+($X$4-$W$4)/180*(I28-60)),MIN(0,S7-J7)) -> -0.004677631427 | N28: =MAX(IF(I28<60,$Y$4+($Z$4-$Y$4)/60*I28,$Z$4+($AA$4-$Z$4)/180*(I28-60)),MIN(0,S7-K7)) -> -0.01238410321 | O28: =MAX(IF(I28<60,$AB$4+($AC$4-$AB$4)/60*I28,$AC$4+($AD$4-$AC$4)/180*(I28-60)),MIN(0,S7-L7)) -> -0.004283502241 | P28: =EXP(-M28*I28/12)-1 -> 1.299350505e-05 | Q28: =EXP(-N28*I28/12)-1 -> 3.440087839e-05 | R28: =EXP(-O28*I28/12)-1 -> 1.189868813e-05 | U28: USD_short | V28: 3.107185001e-05 | W28: 1.237976646e-05 | X28: 1.151200193e-05 | Y28: 8.155407679e-05 | Z28: 3.653910156e-05 | AA28: 1.101051608e-05 | AB28: 0.0001663003614 | AC28: 4.06040106e-05 | AD28: 2.526822982e-05
H29: ON_1M | I29: 0.5 | M29: -0.004708163196 | N29: -0.01227702237 | O29: -0.004258832508 | P29: 0.0001961927098 | Q29: 0.0005116734589 | R29: 0.0001774670999 | U29: USD_par | V29: 1.68605718e-05 | W29: 3.728796878e-05 | X29: 2.862783582e-05 | Y29: 2.402046679e-05 | Z29: 5.265137614e-05 | AA29: 2.456397447e-05 | AB29: 4.06040106e-05 | AC29: 7.391127175e-05 | AD29: 4.624764138e-05
H30: 1M_3M | I30: 2 | M30: -0.004806301024 | N30: -0.01193283395 | O30: -0.004179536938 | P30: 0.0008013710971 | Q30: 0.001990784644 | R30: 0.0006968321645 | U30: USD_long | V30: 7.087196398e-06 | W30: 2.303060785e-05 | X30: 2.283762773e-05 | Y30: 2.152466083e-05 | Z30: 3.656674998e-05 | AA30: 2.044828829e-05 | AB30: 2.526822982e-05 | AC30: 4.624764138e-05 | AD30: 4.157509036e-05
H31: 3M_6M | I31: 4.5 | M31: -0.004969864071 | N31: -0.01135918658 | O31: -0.004047377654 | P31: 0.001865436793 | Q31: 0.004268780363 | R31: 0.001518919011
H32: 6M_9M | I32: 7.5 | M32: -0.005166139727 | N32: -0.01067080974 | O32: -0.003888786513 | P32: 0.00323405564 | Q32: 0.006691545096 | R32: 0.00243344761 | U32: Cholesky | V32: HUF_short | W32: HUF_par | X32: HUF_long | Y32: EUR_short | Z32: EUR_par | AA32: EUR_long | AB32: USD_short | AC32: USD_par | AD32: USD_long
H33: 9M_12M | I33: 10.5 | M33: -0.005362415383 | N33: -0.009982432893 | O33: -0.003730195372 | P33: 0.004703138662 | Q33: 0.00877288696 | R33: 0.003269253341 | U33: HUF_short | V33: 0.01934362462 | W33: 0 | X33: 0 | Y33: 0 | Z33: 0 | AA33: 0 | AB33: 0 | AC33: 0 | AD33: 0
H34: 12M_18M | I34: 15 | J34: =P13*M13 -> 3808048708 | K34: =Q13*N13 -> -15674926.63 | L34: =R13*O13 -> -2289671.409 | M34: -0.005656828868 | N34: -0.008949867628 | O34: -0.003492308661 | P34: 0.007096094889 | Q34: 0.01125014678 | R34: 0.004374928003 | U34: HUF_par | V34: 0.007617916862 | W34: 0.0104051768 | X34: 0 | Y34: 0 | Z34: 0 | AA34: 0 | AB34: 0 | AC34: 0 | AD34: 0
H35: 18M_2Y | I35: 21 | J35: 41816935.32 | K35: -270195200.8 | L35: -117337.6677 | M35: -0.00604938018 | N35: -0.007573113943 | O35: -0.00317512638 | P35: 0.01064264967 | Q35: 0.01334115898 | R35: 0.005571936982 | U35: HUF_long | V35: 0.002911597744 | W35: 0.006086919843 | X35: 0.005327595814 | Y35: 0 | Z35: 0 | AA35: 0 | AB35: 0 | AC35: 0 | AD35: 0
H36: 2Y_3Y | I36: 30 | J36: 936912559.7 | K36: -25614414.75 | L36: -27683864.82 | M36: -0.006638207148 | N36: -0.005507983414 | O36: -0.002699352958 | P36: 0.01673398841 | Q36: 0.01386520107 | R36: 0.006771204034 | U36: EUR_short | V36: 0.0005985630946 | W36: -0.001457576769 | X36: 0.001295602543 | Y36: 0.0105510648 | Z36: 0 | AA36: 0 | AB36: 0 | AC36: 0 | AD36: 0
H37: 3Y_4Y | I37: 42 | J37: 5353243267 | K37: -34349854.47 | L37: -7008577.917 | M37: -0.007423309773 | N37: -0.002754476043 | O37: -0.002064988395 | P37: 0.02632204776 | Q37: 0.00968728707 | R37: 0.007253640502 | U37: EUR_par | V37: 0.000318061159 | W37: 0.002221593851 | X37: 0.001579385943 | Y37: 0.004592954215 | Z37: 0.006729408684 | AA37: 0 | AB37: 0 | AC37: 0 | AD37: 0
H38: 4Y_5Y | I38: 54 | J38: 93748796.91 | K38: -10898270.47 | L38: -45833901.23 | M38: -0.008208412398 | N38: -9.686713798e-07 | O38: -0.001430623831 | P38: 0.03762853623 | Q38: 4.359030709e-06 | R38: 0.006458574464 | U38: EUR_long | V38: 0.0002551220888 | W38: 0.001276790595 | X38: 0.001098432166 | Y38: 0.00115647548 | Z38: 0.003033878321 | AA38: 0.0022436867 | AB38: 0 | AC38: 0 | AD38: 0
H39: 5Y_6Y | I39: 66 | J39: 6753151.009 | K39: -7525268.582 | L39: -969990.8084 | M39: -0.008259551547 | N39: 0.001453558014 | O39: -0.0009539008743 | P39: 0.04647516748 | Q39: -0.007962697502 | R39: 0.005260241553 | U39: USD_short | V39: 0.001606309605 | W39: 1.374637255e-05 | X39: 0.001267251061 | Y39: 0.007484626752 | Z39: -5.652331549e-05 | AA39: 0.0003150475488 | AB39: 0.01029523818 | AC39: 0 | AD39: 0
H40: 6Y_7Y | I40: 78 | J40: 496316373.1 | K40: -223005.672 | L40: -124733.8083 | M40: -0.00757672722 | N40: 0.001609104015 | O40: -0.0006348195229 | P40: 0.05048160131 | Q40: -0.01040466911 | R40: 0.004134851907 | U40: USD_par | V40: 0.0008716345634 | W40: 0.00294545011 | X40: 0.001531885704 | Y40: 0.00244593732 | Z40: 0.004781554194 | AA40: 0.0006965703213 | AB40: 0.00184221199 | AC40: 0.00542257777 | AD40: 0
H41: 7Y_8Y | I41: 90 | J41: 5961882.371 | K41: -63191.63883 | L41: -126770.7149 | M41: -0.006893902894 | N41: 0.001764650015 | O41: -0.0003157381715 | P41: 0.05306427556 | Q41: -0.01314767925 | R41: 0.002370842299 | U41: USD_long | V41: 0.000366384095 | W41: 0.001945139873 | X41: 0.001864059226 | Y41: 0.002059078213 | Z41: 0.002931548175 | AA41: 0.002027245063 | AB41: 0.0006222609054 | AC41: 0.002901067151 | AD41: 0.002904422068
H42: 8Y_9Y | I42: 102 | J42: 556154195.9 | K42: 702281.7273 | L42: -11009.75726 | M42: -0.006211078567 | N42: 0.001920196015 | O42: 3.343179835e-06 | P42: 0.0542126319 | Q42: -0.01618918946 | R42: -2.841662484e-05
H43: 9Y_10Y | I43: 114 | J43: 15046949.83 | K43: -2680686.144 | L43: -146792.7306 | M43: -0.005528254241 | N43: 0.002075742016 | O43: 0.0003224245312 | P43: 0.05392197018 | Q43: -0.01952639059 | R43: -0.003058346747
H44: 10Y_15Y | I44: 150 | J44: 17988609.45 | K44: -20344890.75 | L44: -278259.7963 | M44: -0.003479781261 | N44: 0.002542380017 | O44: 0.001279668585 | P44: 0.04445713852 | Q44: -0.03128008105 | R44: -0.01586860301
H45: 15Y_20Y | I45: 210 | J45: 125432.1056 | K45: -1200962.84 | L45: -22717.68601 | M45: -6.565962879e-05 | N45: 0.003320110018 | O45: 0.002875075342 | P45: 0.001149703907 | Q45: -0.05644622948 | R45: -0.04906904204
H46: 20Y_ | I46: 240 | J46: -56906.7714 | K46: 5780.003381 | L46: 0 | M46: 0.001641401187 | N46: 0.003708975019 | O46: 0.003672778721 | P46: -0.03229503245 | Q46: -0.07149498812 | R46: -0.07082257587
U999: 0 | V999: 0
U1000: 0 | V1000: 0
U1001: 0 | V1001: 0

Sheet dNII
A1: Devizanem | B1: Tőke CF | C1: Hátralévő futamidő (év) | D1: Átárazódási periódus (9R1) | E1: Átlagos kamatláb | F1: Ügyleti/piaci kamatpadló | G1: Kamat sokk (s) | H1: Kamat sokk floor-ral (sfloor) | I1: dNII
A2: EUR | B2: -38163895.25 | C2: 0.997260274 | D2: ON | E2: 0 | F2: -0.01499917808 | G2: =INDEX(dINC!$D$7:$F$19,MATCH(D2,dINC!$B$7:$B$19,0),MATCH(A2,dINC!$C$2:$E$2,0)) -> -0.01238410321 | H2: =MAX(G2,MIN(0,F2-E2)) -> -0.01238410321 | I2: =B2*C2*H2 -> 471330.7531
A3: EUR | B3: -4.369530606e+10 | C3: 0.997260274 | D3: ON | E3: 0.0002 | F3: -0.01499917808 | G3: =INDEX(dINC!$D$7:$F$19,MATCH(D3,dINC!$B$7:$B$19,0),MATCH(A3,dINC!$C$2:$E$2,0)) -> -0.01238410321 | H3: =MAX(G3,MIN(0,F3-E3)) -> -0.01238410321 | I3: =B3*C3*H3 -> 539644639.8
A4: EUR | B4: 131673.0435 | C4: 0.8333333333 | D4: ON | E4: 0.1679 | F4: -0.01499917808 | G4: =INDEX(dINC!$D$7:$F$19,MATCH(D4,dINC!$B$7:$B$19,0),MATCH(A4,dINC!$C$2:$E$2,0)) -> -0.01238410321 | H4: -0.01238410321 | I4: -1358.877134
A5: EUR | B5: -270171822.8 | C5: 0.997260274 | D5: 1M | E5: 0 | F5: -0.014975 | G5: =INDEX(dINC!$D$7:$F$19,MATCH(D5,dINC!$B$7:$B$19,0),MATCH(A5,dINC!$C$2:$E$2,0)) -> -0.01216229289 | H5: -0.01216229289 | I5: 3276906.351
A6: EUR | B6: 74329446.18 | C6: 0.9583333333 | D6: 1M | E6: 0.0204 | F6: -0.014975 | G6: =INDEX(dINC!$D$7:$F$19,MATCH(D6,dINC!$B$7:$B$19,0),MATCH(A6,dINC!$C$2:$E$2,0)) -> -0.01216229289 | H6: -0.01216229289 | I6: -866349.1412
A7: EUR | B7: -171984.4132 | C7: 0.9583333333 | D7: 1M | E7: 0 | F7: -0.014975 | G7: =INDEX(dINC!$D$7:$F$19,MATCH(D7,dINC!$B$7:$B$19,0),MATCH(A7,dINC!$C$2:$E$2,0)) -> -0.01216229289 | H7: -0.01216229289 | I7: 2004.569607
A8: EUR | B8: 108226262.9 | C8: 0.8333333333 | D8: 1M | E8: 0.0089 | F8: -0.014975 | G8: =INDEX(dINC!$D$7:$F$19,MATCH(D8,dINC!$B$7:$B$19,0),MATCH(A8,dINC!$C$2:$E$2,0)) -> -0.01216229289 | H8: -0.01216229289 | I8: -1096899.59
A9: EUR | B9: 6651530.242 | C9: 0.8333333333 | D9: 1M | E9: 0.0137 | F9: -0.014975 | G9: =INDEX(dINC!$D$7:$F$19,MATCH(D9,dINC!$B$7:$B$19,0),MATCH(A9,dINC!$C$2:$E$2,0)) -> -0.01216229289 | H9: -0.01216229289 | I9: -67414.8825
A10: EUR | B10: -155994794 | C10: 0.997260274 | D10: 3M | E10: 0.0001 | F10: -0.014925 | G10: =INDEX(dINC!$D$7:$F$19,MATCH(D10,dINC!$B$7:$B$19,0),MATCH(A10,dINC!$C$2:$E$2,0)) -> -0.011703375 | H10: -0.011703375 | I10: 1820663.749
A11: EUR | B11: 465743772.9 | C11: 0.8333333333 | D11: 3M | E11: 0.0695 | F11: -0.014925 | G11: =INDEX(dINC!$D$7:$F$19,MATCH(D11,dINC!$B$7:$B$19,0),MATCH(A11,dINC!$C$2:$E$2,0)) -> -0.011703375 | H11: -0.011703375 | I11: -4542311.69
A12: EUR | B12: 17681.13044 | C12: 0.8333333333 | D12: 3M | E12: 0.2033 | F12: -0.014925 | G12: =INDEX(dINC!$D$7:$F$19,MATCH(D12,dINC!$B$7:$B$19,0),MATCH(A12,dINC!$C$2:$E$2,0)) -> -0.011703375 | H12: -0.011703375 | I12: -172.44075
A13: EUR | B13: -6.062907247e+10 | C13: 0.8333333333 | D13: 3M | E13: 0 | F13: -0.014925 | G13: =INDEX(dINC!$D$7:$F$19,MATCH(D13,dINC!$B$7:$B$19,0),MATCH(A13,dINC!$C$2:$E$2,0)) -> -0.011703375 | H13: -0.011703375 | I13: 591303975.8
A14: EUR | B14: -1365112696 | C14: 0.8333333333 | D14: 3M | E14: 0.0002 | F14: -0.014925 | G14: =INDEX(dINC!$D$7:$F$19,MATCH(D14,dINC!$B$7:$B$19,0),MATCH(A14,dINC!$C$2:$E$2,0)) -> -0.011703375 | H14: -0.011703375 | I14: 13313688.17
A15: EUR | B15: -1.489059086e+11 | C15: 0.8333333333 | D15: 3M | E15: 0.003 | F15: -0.014925 | G15: =INDEX(dINC!$D$7:$F$19,MATCH(D15,dINC!$B$7:$B$19,0),MATCH(A15,dINC!$C$2:$E$2,0)) -> -0.011703375 | H15: -0.011703375 | I15: 1452251407
A16: EUR | B16: 1.177037571e+11 | C16: 0.8333333333 | D16: 3M | E16: 0.0345 | F16: -0.014925 | G16: =INDEX(dINC!$D$7:$F$19,MATCH(D16,dINC!$B$7:$B$19,0),MATCH(A16,dINC!$C$2:$E$2,0)) -> -0.011703375 | H16: -0.011703375 | I16: -1147942674
A17: EUR | B17: 2463975208 | C17: 0.625 | D17: 3M | E17: 0.0621 | F17: -0.014925 | G17: =INDEX(dINC!$D$7:$F$19,MATCH(D17,dINC!$B$7:$B$19,0),MATCH(A17,dINC!$C$2:$E$2,0)) -> -0.011703375 | H17: -0.011703375 | I17: -18023016.16
A18: EUR | B18: 4337658408 | C18: 0.625 | D18: 3M | E18: 0.0512 | F18: -0.014925 | G18: =INDEX(dINC!$D$7:$F$19,MATCH(D18,dINC!$B$7:$B$19,0),MATCH(A18,dINC!$C$2:$E$2,0)) -> -0.011703375 | H18: -0.011703375 | I18: -31728276.86
A19: EUR | B19: 20427.64343 | C19: 0.625 | D19: 3M | E19: 0.2033 | F19: -0.014925 | G19: =INDEX(dINC!$D$7:$F$19,MATCH(D19,dINC!$B$7:$B$19,0),MATCH(A19,dINC!$C$2:$E$2,0)) -> -0.011703375 | H19: -0.011703375 | I19: -149.4202321
A20: EUR | B20: 777504.8683 | C20: 0.375 | D20: 3M | E20: 0 | F20: -0.014925 | G20: =INDEX(dINC!$D$7:$F$19,MATCH(D20,dINC!$B$7:$B$19,0),MATCH(A20,dINC!$C$2:$E$2,0)) -> -0.011703375 | H20: -0.011703375 | I20: -3412.286639
A21: EUR | B21: 1262374.109 | C21: 0.997260274 | D21: 6M | E21: 0 | F21: -0.01485 | G21: =INDEX(dINC!$D$7:$F$19,MATCH(D21,dINC!$B$7:$B$19,0),MATCH(A21,dINC!$C$2:$E$2,0)) -> -0.01101499816 | H21: -0.01101499816 | I21: -13866.95246
A22: EUR | B22: -57220212.53 | C22: 0.997260274 | D22: 6M | E22: 0 | F22: -0.01485 | G22: =INDEX(dINC!$D$7:$F$19,MATCH(D22,dINC!$B$7:$B$19,0),MATCH(A22,dINC!$C$2:$E$2,0)) -> -0.01101499816 | H22: -0.01101499816 | I22: 628553.7396
A23: EUR | B23: -282561128.4 | C23: 0.9583333333 | D23: 6M | E23: 0 | F23: -0.01485 | G23: =INDEX(dINC!$D$7:$F$19,MATCH(D23,dINC!$B$7:$B$19,0),MATCH(A23,dINC!$C$2:$E$2,0)) -> -0.01101499816 | H23: -0.01101499816 | I23: 2982726.546
A24: EUR | B24: 67596016.5 | C24: 0.9583333333 | D24: 6M | E24: 0.0359 | F24: -0.01485 | G24: =INDEX(dINC!$D$7:$F$19,MATCH(D24,dINC!$B$7:$B$19,0),MATCH(A24,dINC!$C$2:$E$2,0)) -> -0.01101499816 | H24: -0.01101499816 | I24: -713546.2473
A25: EUR | B25: 5.924589583e+10 | C25: 0.8333333333 | D25: 6M | E25: 0.0374 | F25: -0.01485 | G25: =INDEX(dINC!$D$7:$F$19,MATCH(D25,dINC!$B$7:$B$19,0),MATCH(A25,dINC!$C$2:$E$2,0)) -> -0.01101499816 | H25: -0.01101499816 | I25: -543827861.2
A26: EUR | B26: 10389635.78 | C26: 0.8333333333 | D26: 6M | E26: 0.0208 | F26: -0.01485 | G26: =INDEX(dINC!$D$7:$F$19,MATCH(D26,dINC!$B$7:$B$19,0),MATCH(A26,dINC!$C$2:$E$2,0)) -> -0.01101499816 | H26: -0.01101499816 | I26: -95368.18245
A27: EUR | B27: -4413647594 | C27: 0.8333333333 | D27: 6M | E27: 0.001 | F27: -0.01485 | G27: =INDEX(dINC!$D$7:$F$19,MATCH(D27,dINC!$B$7:$B$19,0),MATCH(A27,dINC!$C$2:$E$2,0)) -> -0.01101499816 | H27: -0.01101499816 | I27: 40513600.1
A28: EUR | B28: 2.594594951e+11 | C28: 0.625 | D28: 6M | E28: 0.0602 | F28: -0.01485 | G28: =INDEX(dINC!$D$7:$F$19,MATCH(D28,dINC!$B$7:$B$19,0),MATCH(A28,dINC!$C$2:$E$2,0)) -> -0.01101499816 | H28: -0.01101499816 | I28: -1786216163
A29: EUR | B29: -3344965108 | C29: 0.625 | D29: 6M | E29: 0 | F29: -0.01485 | G29: =INDEX(dINC!$D$7:$F$19,MATCH(D29,dINC!$B$7:$B$19,0),MATCH(A29,dINC!$C$2:$E$2,0)) -> -0.01101499816 | H29: -0.01101499816 | I29: 23027990.31
A30: EUR | B30: -1.974489203e+10 | C30: 0.625 | D30: 6M | E30: 0.0001 | F30: -0.01485 | G30: =INDEX(dINC!$D$7:$F$19,MATCH(D30,dINC!$B$7:$B$19,0),MATCH(A30,dINC!$C$2:$E$2,0)) -> -0.01101499816 | H30: -0.01101499816 | I30: 135931218.3
A31: EUR | B31: 2.610845539e+10 | C31: 0.375 | D31: 6M | E31: 0.0769 | F31: -0.01485 | G31: =INDEX(dINC!$D$7:$F$19,MATCH(D31,dINC!$B$7:$B$19,0),MATCH(A31,dINC!$C$2:$E$2,0)) -> -0.01101499816 | H31: -0.01101499816 | I31: -107844220.5
A32: EUR | B32: -22104.52406 | C32: 0.997260274 | D32: 9M | E32: 0 | F32: -0.014775 | G32: =INDEX(dINC!$D$7:$F$19,MATCH(D32,dINC!$B$7:$B$19,0),MATCH(A32,dINC!$C$2:$E$2,0)) -> -0.01032662131 | H32: -0.01032662131 | I32: 227.6396656
A33: EUR | B33: 13985485.17 | C33: 0.9583333333 | D33: 9M | E33: 0.0743 | F33: -0.014775 | G33: =INDEX(dINC!$D$7:$F$19,MATCH(D33,dINC!$B$7:$B$19,0),MATCH(A33,dINC!$C$2:$E$2,0)) -> -0.01032662131 | H33: -0.01032662131 | I33: -138405.1922
A34: EUR | B34: 3232239600 | C34: 0.9583333333 | D34: 9M | E34: 0.0315 | F34: -0.014775 | G34: =INDEX(dINC!$D$7:$F$19,MATCH(D34,dINC!$B$7:$B$19,0),MATCH(A34,dINC!$C$2:$E$2,0)) -> -0.01032662131 | H34: -0.01032662131 | I34: -31987359.58
A35: EUR | B35: -31410406.85 | C35: 0.9583333333 | D35: 9M | E35: 0 | F35: -0.014775 | G35: =INDEX(dINC!$D$7:$F$19,MATCH(D35,dINC!$B$7:$B$19,0),MATCH(A35,dINC!$C$2:$E$2,0)) -> -0.01032662131 | H35: -0.01032662131 | I35: 310848.2362
A36: EUR | B36: 2584025066 | C36: 0.8333333333 | D36: 9M | E36: 0.032 | F36: -0.014775 | G36: =INDEX(dINC!$D$7:$F$19,MATCH(D36,dINC!$B$7:$B$19,0),MATCH(A36,dINC!$C$2:$E$2,0)) -> -0.01032662131 | H36: -0.01032662131 | I36: -22236873.61
A37: EUR | B37: 41142162.39 | C37: 0.625 | D37: 9M | E37: 0.1068 | F37: -0.014775 | G37: =INDEX(dINC!$D$7:$F$19,MATCH(D37,dINC!$B$7:$B$19,0),MATCH(A37,dINC!$C$2:$E$2,0)) -> -0.01032662131 | H37: -0.01032662131 | I37: -265537.2069
A38: EUR | B38: -52918878.76 | C38: 0.375 | D38: 9M | E38: 0 | F38: -0.014775 | G38: =INDEX(dINC!$D$7:$F$19,MATCH(D38,dINC!$B$7:$B$19,0),MATCH(A38,dINC!$C$2:$E$2,0)) -> -0.01032662131 | H38: -0.01032662131 | I38: 204927.458
A39: EUR | B39: -2802727348 | C39: 0.375 | D39: 9M | E39: 0 | F39: 0 | G39: =INDEX(dINC!$D$7:$F$19,MATCH(D39,dINC!$B$7:$B$19,0),MATCH(A39,dINC!$C$2:$E$2,0)) -> -0.01032662131 | H39: 0 | I39: 0
A40: EUR | B40: 6875486.522 | C40: 0.997260274 | D40: 1Y | E40: 0 | F40: -0.0147 | G40: =INDEX(dINC!$D$7:$F$19,MATCH(D40,dINC!$B$7:$B$19,0),MATCH(A40,dINC!$C$2:$E$2,0)) -> -0.009638244471 | H40: -0.009638244471 | I40: -66086.06484
A41: EUR | B41: 1.550301473e+10 | C41: 0.9583333333 | D41: 1Y | E41: 0.0592 | F41: -0.0147 | G41: =INDEX(dINC!$D$7:$F$19,MATCH(D41,dINC!$B$7:$B$19,0),MATCH(A41,dINC!$C$2:$E$2,0)) -> -0.009638244471 | H41: -0.009638244471 | I41: -143195935.8
A42: EUR | B42: 2555.843407 | C42: 0.9583333333 | D42: 1Y | E42: 0.082 | F42: -0.0147 | G42: =INDEX(dINC!$D$7:$F$19,MATCH(D42,dINC!$B$7:$B$19,0),MATCH(A42,dINC!$C$2:$E$2,0)) -> -0.009638244471 | H42: -0.009638244471 | I42: -23.60743343
A43: EUR | B43: 976658.571 | C43: 0.9583333333 | D43: 1Y | E43: 0.0006 | F43: -0.0147 | G43: =INDEX(dINC!$D$7:$F$19,MATCH(D43,dINC!$B$7:$B$19,0),MATCH(A43,dINC!$C$2:$E$2,0)) -> -0.009638244471 | H43: -0.009638244471 | I43: -9021.054319
A44: EUR | B44: 1033456.442 | C44: 0.9583333333 | D44: 1Y | E44: 0.1422 | F44: -0.0147 | G44: =INDEX(dINC!$D$7:$F$19,MATCH(D44,dINC!$B$7:$B$19,0),MATCH(A44,dINC!$C$2:$E$2,0)) -> -0.009638244471 | H44: -0.009638244471 | I44: -9545.676432
A45: EUR | B45: 2764338950 | C45: 0.8333333333 | D45: 1Y | E45: 0.0724 | F45: -0.0147 | G45: =INDEX(dINC!$D$7:$F$19,MATCH(D45,dINC!$B$7:$B$19,0),MATCH(A45,dINC!$C$2:$E$2,0)) -> -0.009638244471 | H45: -0.009638244471 | I45: -22202812.17
A46: EUR | B46: 254447819.6 | C46: 0.8333333333 | D46: 1Y | E46: 0.1985 | F46: -0.0147 | G46: =INDEX(dINC!$D$7:$F$19,MATCH(D46,dINC!$B$7:$B$19,0),MATCH(A46,dINC!$C$2:$E$2,0)) -> -0.009638244471 | H46: -0.009638244471 | I46: -2043691.909
A47: EUR | B47: 1982562460 | C47: 0.8333333333 | D47: 1Y | E47: 0.0592 | F47: -0.0147 | G47: =INDEX(dINC!$D$7:$F$19,MATCH(D47,dINC!$B$7:$B$19,0),MATCH(A47,dINC!$C$2:$E$2,0)) -> -0.009638244471 | H47: -0.009638244471 | I47: -15923684.72
A48: EUR | B48: 8.807902469e+10 | C48: 0.625 | D48: 1Y | E48: 0.0512 | F48: -0.0147 | G48: =INDEX(dINC!$D$7:$F$19,MATCH(D48,dINC!$B$7:$B$19,0),MATCH(A48,dINC!$C$2:$E$2,0)) -> -0.009638244471 | H48: -0.009638244471 | I48: -530579483
A49: EUR | B49: -4.335493668e+10 | C49: 0.625 | D49: 1Y | E49: 0.0083 | F49: -0.0147 | G49: =INDEX(dINC!$D$7:$F$19,MATCH(D49,dINC!$B$7:$B$19,0),MATCH(A49,dINC!$C$2:$E$2,0)) -> -0.009638244471 | H49: -0.009638244471 | I49: 261165924.2
A50: EUR | B50: -3639784210 | C50: 0.625 | D50: 1Y | E50: 0.0006 | F50: -0.0147 | G50: =INDEX(dINC!$D$7:$F$19,MATCH(D50,dINC!$B$7:$B$19,0),MATCH(A50,dINC!$C$2:$E$2,0)) -> -0.009638244471 | H50: -0.009638244471 | I50: 21925706.27
A51: EUR | B51: 1292683559 | C51: 0.375 | D51: 1Y | E51: 0.061 | F51: -0.0147 | G51: =INDEX(dINC!$D$7:$F$19,MATCH(D51,dINC!$B$7:$B$19,0),MATCH(A51,dINC!$C$2:$E$2,0)) -> -0.009638244471 | H51: -0.009638244471 | I51: -4672200.063
A52: EUR | B52: 32334681.99 | C52: 0.125 | D52: 1Y | E52: 0.0029 | F52: -0.0147 | G52: =INDEX(dINC!$D$7:$F$19,MATCH(D52,dINC!$B$7:$B$19,0),MATCH(A52,dINC!$C$2:$E$2,0)) -> -0.009638244471 | H52: -0.009638244471 | I52: -38956.19624
A53: EUR | B53: -273487937 | C53: 0.8333333333 | D53: 2Y | E53: 0.0018 | F53: -0.0144 | G53: =INDEX(dINC!$D$7:$F$19,MATCH(D53,dINC!$B$7:$B$19,0),MATCH(A53,dINC!$C$2:$E$2,0)) -> -0.0068847371 | H53: -0.0068847371 | I53: 1569077.122
A54: EUR | B54: 92098056.45 | C54: 0.625 | D54: 2Y | E54: 0.0381 | F54: -0.0144 | G54: =INDEX(dINC!$D$7:$F$19,MATCH(D54,dINC!$B$7:$B$19,0),MATCH(A54,dINC!$C$2:$E$2,0)) -> -0.0068847371 | H54: -0.0068847371 | I54: -396294.3163
A55: EUR | B55: 328542.2695 | C55: 0.625 | D55: 2Y | E55: 0.1299 | F55: -0.0144 | G55: =INDEX(dINC!$D$7:$F$19,MATCH(D55,dINC!$B$7:$B$19,0),MATCH(A55,dINC!$C$2:$E$2,0)) -> -0.0068847371 | H55: -0.0068847371 | I55: -1413.70447
A56: EUR | B56: -5616678.733 | C56: 0.625 | D56: 2Y | E56: 0 | F56: -0.0144 | G56: =INDEX(dINC!$D$7:$F$19,MATCH(D56,dINC!$B$7:$B$19,0),MATCH(A56,dINC!$C$2:$E$2,0)) -> -0.0068847371 | H56: -0.0068847371 | I56: 24168.34778
A57: EUR | B57: -4374956.34 | C57: 0.375 | D57: 2Y | E57: 0 | F57: -0.0144 | G57: =INDEX(dINC!$D$7:$F$19,MATCH(D57,dINC!$B$7:$B$19,0),MATCH(A57,dINC!$C$2:$E$2,0)) -> -0.0068847371 | H57: -0.0068847371 | I57: 11295.15908
A58: EUR | B58: 489234181 | C58: 0.125 | D58: 2Y | E58: 0.052 | F58: -0.0144 | G58: =INDEX(dINC!$D$7:$F$19,MATCH(D58,dINC!$B$7:$B$19,0),MATCH(A58,dINC!$C$2:$E$2,0)) -> -0.0068847371 | H58: -0.0068847371 | I58: -421031.0896
A59: EUR | B59: 512832849.1 | C59: 0.125 | D59: 2Y | E59: 0.1382 | F59: -0.0144 | G59: =INDEX(dINC!$D$7:$F$19,MATCH(D59,dINC!$B$7:$B$19,0),MATCH(A59,dINC!$C$2:$E$2,0)) -> -0.0068847371 | H59: -0.0068847371 | I59: -441339.9178
A60: EUR | B60: 2810239.354 | C60: 0.125 | D60: 2Y | E60: 0.0241 | F60: -0.0144 | G60: =INDEX(dINC!$D$7:$F$19,MATCH(D60,dINC!$B$7:$B$19,0),MATCH(A60,dINC!$C$2:$E$2,0)) -> -0.0068847371 | H60: -0.0068847371 | I60: -2418.469892
A61: EUR | B61: 659813834.5 | C61: 0.997260274 | D61: 3Y | E61: 0 | F61: -0.0141 | G61: =INDEX(dINC!$D$7:$F$19,MATCH(D61,dINC!$B$7:$B$19,0),MATCH(A61,dINC!$C$2:$E$2,0)) -> -0.004131229728 | H61: -0.004131229728 | I61: -2718374.467
A62: EUR | B62: 81579176.95 | C62: 0.997260274 | D62: 3Y | E62: 0 | F62: -0.0141 | G62: =INDEX(dINC!$D$7:$F$19,MATCH(D62,dINC!$B$7:$B$19,0),MATCH(A62,dINC!$C$2:$E$2,0)) -> -0.004131229728 | H62: -0.004131229728 | I62: -336098.9722
A63: EUR | B63: 121359.7593 | C63: 0.9583333333 | D63: 3Y | E63: 0.033 | F63: -0.0141 | G63: =INDEX(dINC!$D$7:$F$19,MATCH(D63,dINC!$B$7:$B$19,0),MATCH(A63,dINC!$C$2:$E$2,0)) -> -0.004131229728 | H63: -0.004131229728 | I63: -480.4748354
A64: EUR | B64: 96027182.77 | C64: 0.9583333333 | D64: 3Y | E64: 0.0224 | F64: -0.0141 | G64: =INDEX(dINC!$D$7:$F$19,MATCH(D64,dINC!$B$7:$B$19,0),MATCH(A64,dINC!$C$2:$E$2,0)) -> -0.004131229728 | H64: -0.004131229728 | I64: -380180.7542
A65: EUR | B65: 824272787.4 | C65: 0.8333333333 | D65: 3Y | E65: 0.0325 | F65: -0.0141 | G65: =INDEX(dINC!$D$7:$F$19,MATCH(D65,dINC!$B$7:$B$19,0),MATCH(A65,dINC!$C$2:$E$2,0)) -> -0.004131229728 | H65: -0.004131229728 | I65: -2837716.87
A66: EUR | B66: 51529746.75 | C66: 0.625 | D66: 3Y | E66: 0.0413 | F66: -0.0141 | G66: =INDEX(dINC!$D$7:$F$19,MATCH(D66,dINC!$B$7:$B$19,0),MATCH(A66,dINC!$C$2:$E$2,0)) -> -0.004131229728 | H66: -0.004131229728 | I66: -133050.7636
A67: EUR | B67: 9274821.719 | C67: 0.625 | D67: 3Y | E67: 0.1338 | F67: -0.0141 | G67: =INDEX(dINC!$D$7:$F$19,MATCH(D67,dINC!$B$7:$B$19,0),MATCH(A67,dINC!$C$2:$E$2,0)) -> -0.004131229728 | H67: =MAX(G67,MIN(0,F67-E67)) -> -0.004131229728 | I67: =B67*C67*H67 -> -23947.76201
A68: EUR | B68: 53954443.94 | C68: 0.625 | D68: 3Y | E68: 0.007 | F68: -0.0141 | G68: =INDEX(dINC!$D$7:$F$19,MATCH(D68,dINC!$B$7:$B$19,0),MATCH(A68,dINC!$C$2:$E$2,0)) -> -0.004131229728 | H68: -0.004131229728 | I68: -139311.3767
A69: EUR | B69: 10177159.83 | C69: 0.625 | D69: 3Y | E69: 0.0381 | F69: -0.0141 | G69: =INDEX(dINC!$D$7:$F$19,MATCH(D69,dINC!$B$7:$B$19,0),MATCH(A69,dINC!$C$2:$E$2,0)) -> -0.004131229728 | H69: -0.004131229728 | I69: -26277.61577
A70: EUR | B70: -20674479.48 | C70: 0.625 | D70: 3Y | E70: 0.0002 | F70: -0.0141 | G70: =INDEX(dINC!$D$7:$F$19,MATCH(D70,dINC!$B$7:$B$19,0),MATCH(A70,dINC!$C$2:$E$2,0)) -> -0.004131229728 | H70: -0.004131229728 | I70: 53381.89015
A71: EUR | B71: 5432114.21 | C71: 0.375 | D71: 3Y | E71: 0.0381 | F71: -0.0141 | G71: =INDEX(dINC!$D$7:$F$19,MATCH(D71,dINC!$B$7:$B$19,0),MATCH(A71,dINC!$C$2:$E$2,0)) -> -0.004131229728 | H71: -0.004131229728 | I71: -8415.491892
A72: EUR | B72: 18520575.59 | C72: 0.997260274 | D72: 5Y | E72: 0 | F72: -0.0135 | G72: =INDEX(dINC!$D$7:$F$19,MATCH(D72,dINC!$B$7:$B$19,0),MATCH(A72,dINC!$C$2:$E$2,0)) -> 0.001375785014 | H72: 0.001375785014 | I72: 25410.52123
A73: EUR | B73: 1928430.273 | C73: 0.997260274 | D73: 5Y | E73: 0.0384 | F73: -0.0135 | G73: =INDEX(dINC!$D$7:$F$19,MATCH(D73,dINC!$B$7:$B$19,0),MATCH(A73,dINC!$C$2:$E$2,0)) -> 0.001375785014 | H73: 0.001375785014 | I73: 2645.836688
A74: EUR | B74: 353234689 | C74: 0.9583333333 | D74: 5Y | E74: 0.0321 | F74: -0.0135 | G74: =INDEX(dINC!$D$7:$F$19,MATCH(D74,dINC!$B$7:$B$19,0),MATCH(A74,dINC!$C$2:$E$2,0)) -> 0.001375785014 | H74: 0.001375785014 | I74: 465726.0337
A75: EUR | B75: 248607.2864 | C75: 0.9583333333 | D75: 5Y | E75: 0.0329 | F75: -0.0135 | G75: =INDEX(dINC!$D$7:$F$19,MATCH(D75,dINC!$B$7:$B$19,0),MATCH(A75,dINC!$C$2:$E$2,0)) -> 0.001375785014 | H75: 0.001375785014 | I75: 327.7789216
A76: EUR | B76: 1203476.924 | C76: 0.8333333333 | D76: 5Y | E76: 0.0329 | F76: -0.0135 | G76: =INDEX(dINC!$D$7:$F$19,MATCH(D76,dINC!$B$7:$B$19,0),MATCH(A76,dINC!$C$2:$E$2,0)) -> 0.001375785014 | H76: 0.001375785014 | I76: 1379.771265
A77: EUR | B77: -62302782.63 | C77: 0.125 | D77: 5Y | E77: 0.0057 | F77: -0.0135 | G77: =INDEX(dINC!$D$7:$F$19,MATCH(D77,dINC!$B$7:$B$19,0),MATCH(A77,dINC!$C$2:$E$2,0)) -> 0.001375785014 | H77: 0.001375785014 | I77: -10714.40434
A78: EUR | B78: 124168730.1 | C78: 0.9583333333 | D78: 10Y | E78: 0.054 | F78: -0.012 | G78: =INDEX(dINC!$D$7:$F$19,MATCH(D78,dINC!$B$7:$B$19,0),MATCH(A78,dINC!$C$2:$E$2,0)) -> 0.002153515016 | H78: 0.002153515016 | I78: 256257.5904
A79: EUR | B79: -213354282.6 | C79: 0.8333333333 | D79: 10Y | E79: 0.0077 | F79: -0.012 | G79: =INDEX(dINC!$D$7:$F$19,MATCH(D79,dINC!$B$7:$B$19,0),MATCH(A79,dINC!$C$2:$E$2,0)) -> 0.002153515016 | H79: 0.002153515016 | I79: -382884.7094
A80: EUR | B80: 1.603954445e+10 | C80: 0.625 | D80: 10Y | E80: 0.0534 | F80: -0.012 | G80: =INDEX(dINC!$D$7:$F$19,MATCH(D80,dINC!$B$7:$B$19,0),MATCH(A80,dINC!$C$2:$E$2,0)) -> 0.002153515016 | H80: 0.002153515016 | I80: 21588374.89
A81: EUR | B81: 20356257.94 | C81: 0.625 | D81: 10Y | E81: 0.0381 | F81: -0.012 | G81: =INDEX(dINC!$D$7:$F$19,MATCH(D81,dINC!$B$7:$B$19,0),MATCH(A81,dINC!$C$2:$E$2,0)) -> 0.002153515016 | H81: 0.002153515016 | I81: 27398.44196
A82: EUR | B82: 4871828.914 | C82: 0.625 | D82: 10Y | E82: 0.0133 | F82: -0.012 | G82: =INDEX(dINC!$D$7:$F$19,MATCH(D82,dINC!$B$7:$B$19,0),MATCH(A82,dINC!$C$2:$E$2,0)) -> 0.002153515016 | H82: 0.002153515016 | I82: 6557.22295
A83: EUR | B83: 28666087.77 | C83: 0.625 | D83: 10Y | E83: 0.1217 | F83: -0.012 | G83: =INDEX(dINC!$D$7:$F$19,MATCH(D83,dINC!$B$7:$B$19,0),MATCH(A83,dINC!$C$2:$E$2,0)) -> 0.002153515016 | H83: 0.002153515016 | I83: 38583.03154
A84: EUR | B84: 5955870.084 | C84: 0.125 | D84: 10Y | E84: 0.018 | F84: -0.012 | G84: =INDEX(dINC!$D$7:$F$19,MATCH(D84,dINC!$B$7:$B$19,0),MATCH(A84,dINC!$C$2:$E$2,0)) -> 0.002153515016 | H84: 0.002153515016 | I84: 1603.256957
A85: EUR | B85: 15134995.69 | C85: 0.9583333333 | D85: 15Y | E85: 0.0497 | F85: -0.0105 | G85: =INDEX(dINC!$D$7:$F$19,MATCH(D85,dINC!$B$7:$B$19,0),MATCH(A85,dINC!$C$2:$E$2,0)) -> 0.002931245017 | H85: 0.002931245017 | I85: 42515.86485
A86: EUR | B86: 232598423.8 | C86: 0.8333333333 | D86: 15Y | E86: 0.0643 | F86: -0.0105 | G86: =INDEX(dINC!$D$7:$F$19,MATCH(D86,dINC!$B$7:$B$19,0),MATCH(A86,dINC!$C$2:$E$2,0)) -> 0.002931245017 | H86: 0.002931245017 | I86: 568169.1424
A87: EUR | B87: 164680334.8 | C87: 0.625 | D87: 15Y | E87: 0.0524 | F87: -0.0105 | G87: =INDEX(dINC!$D$7:$F$19,MATCH(D87,dINC!$B$7:$B$19,0),MATCH(A87,dINC!$C$2:$E$2,0)) -> 0.002931245017 | H87: 0.002931245017 | I87: 301699.0068
A88: EUR | B88: 395968519.8 | C88: 0.125 | D88: 15Y | E88: 0.022 | F88: -0.0105 | G88: =INDEX(dINC!$D$7:$F$19,MATCH(D88,dINC!$B$7:$B$19,0),MATCH(A88,dINC!$C$2:$E$2,0)) -> 0.002931245017 | H88: 0.002931245017 | I88: 145085.0938
A89: EUR | B89: 686177975.9 | C89: 0.125 | D89: 15Y | E89: 0.064 | F89: -0.0105 | G89: =INDEX(dINC!$D$7:$F$19,MATCH(D89,dINC!$B$7:$B$19,0),MATCH(A89,dINC!$C$2:$E$2,0)) -> 0.002931245017 | H89: 0.002931245017 | I89: 251419.4716
A90: EUR | B90: 4506.777285 | C90: 0.997260274 | D90: 20Y | E90: 0 | F90: -0.009 | G90: =INDEX(dINC!$D$7:$F$19,MATCH(D90,dINC!$B$7:$B$19,0),MATCH(A90,dINC!$C$2:$E$2,0)) -> 0.003708975019 | H90: 0.003708975019 | I90: 16.66972841
A91: EUR | B91: 88824590.16 | C91: 0.8333333333 | D91: 20Y | E91: 0.0576 | F91: -0.009 | G91: =INDEX(dINC!$D$7:$F$19,MATCH(D91,dINC!$B$7:$B$19,0),MATCH(A91,dINC!$C$2:$E$2,0)) -> 0.003708975019 | H91: 0.003708975019 | I91: 274540.155
A92: EUR | B92: 838132319.5 | C92: 0.625 | D92: 20Y | E92: 0.0336 | F92: -0.009 | G92: =INDEX(dINC!$D$7:$F$19,MATCH(D92,dINC!$B$7:$B$19,0),MATCH(A92,dINC!$C$2:$E$2,0)) -> 0.003708975019 | H92: 0.003708975019 | I92: 1942882.397
A93: EUR | B93: 175804838.1 | C93: 0.625 | D93: 20Y | E93: 0.018 | F93: -0.009 | G93: =INDEX(dINC!$D$7:$F$19,MATCH(D93,dINC!$B$7:$B$19,0),MATCH(A93,dINC!$C$2:$E$2,0)) -> 0.003708975019 | H93: 0.003708975019 | I93: 407534.8454
A94: EUR | B94: 3659316.855 | C94: 0.375 | D94: 20Y | E94: 0.0388 | F94: -0.009 | G94: =INDEX(dINC!$D$7:$F$19,MATCH(D94,dINC!$B$7:$B$19,0),MATCH(A94,dINC!$C$2:$E$2,0)) -> 0.003708975019 | H94: 0.003708975019 | I94: 5089.618051
A95: EUR | B95: 17357.6108 | C95: 0.997260274 | D95: 20Y_ | E95: 0 | F95: -0.009 | G95: =INDEX(dINC!$D$7:$F$19,MATCH(D95,dINC!$B$7:$B$19,0),MATCH(A95,dINC!$C$2:$E$2,0)) -> 0.003708975019 | H95: 0.003708975019 | I95: 64.20256417
A96: EUR | B96: 3124261353 | C96: 0.9583333333 | D96: 20Y_ | E96: 0.0421 | F96: -0.009 | G96: =INDEX(dINC!$D$7:$F$19,MATCH(D96,dINC!$B$7:$B$19,0),MATCH(A96,dINC!$C$2:$E$2,0)) -> 0.003708975019 | H96: 0.003708975019 | I96: 11104982.01
A97: EUR | B97: 72481516.41 | C97: 0.625 | D97: 20Y_ | E97: 0.0381 | F97: -0.009 | G97: =INDEX(dINC!$D$7:$F$19,MATCH(D97,dINC!$B$7:$B$19,0),MATCH(A97,dINC!$C$2:$E$2,0)) -> 0.003708975019 | H97: 0.003708975019 | I97: 168020.0836
A98: EUR | B98: 15473683.26 | C98: 0.625 | D98: 20Y_ | E98: 0.0384 | F98: -0.009 | G98: =INDEX(dINC!$D$7:$F$19,MATCH(D98,dINC!$B$7:$B$19,0),MATCH(A98,dINC!$C$2:$E$2,0)) -> 0.003708975019 | H98: 0.003708975019 | I98: 35869.69042
A99: EUR | B99: 25255621.24 | C99: 0.125 | D99: 20Y_ | E99: 0.0777 | F99: -0.009 | G99: =INDEX(dINC!$D$7:$F$19,MATCH(D99,dINC!$B$7:$B$19,0),MATCH(A99,dINC!$C$2:$E$2,0)) -> 0.003708975019 | H99: 0.003708975019 | I99: 11709.05853
A100: HUF | B100: -4740554917 | C100: 0.997260274 | D100: ON | E100: 0.0004 | F100: -0.01499917808 | G100: =INDEX(dINC!$D$7:$F$19,MATCH(D100,dINC!$B$7:$B$19,0),MATCH(A100,dINC!$C$2:$E$2,0)) -> -0.004677631427 | H100: -0.004677631427 | I100: 22113816.42
A101: HUF | B101: -507300039.9 | C101: 0.997260274 | D101: ON | E101: 0 | F101: 0 | G101: =INDEX(dINC!$D$7:$F$19,MATCH(D101,dINC!$B$7:$B$19,0),MATCH(A101,dINC!$C$2:$E$2,0)) -> -0.004677631427 | H101: 0 | I101: 0
A102: HUF | B102: -1.83484442e+10 | C102: 0.9583333333 | D102: 1M | E102: 0.0015 | F102: 0 | G102: =INDEX(dINC!$D$7:$F$19,MATCH(D102,dINC!$B$7:$B$19,0),MATCH(A102,dINC!$C$2:$E$2,0)) -> -0.004740875805 | H102: -0.0015 | I102: 26375888.54
A103: HUF | B103: 589180.4863 | C103: 0.997260274 | D103: 3M | E103: 0.163 | F103: -0.014925 | G103: =INDEX(dINC!$D$7:$F$19,MATCH(D103,dINC!$B$7:$B$19,0),MATCH(A103,dINC!$C$2:$E$2,0)) -> -0.004871726243 | H103: -0.004871726243 | I103: -2862.46213
A104: HUF | B104: -9809370.059 | C104: 0.997260274 | D104: 3M | E104: 0.0001 | F104: -0.014925 | G104: =INDEX(dINC!$D$7:$F$19,MATCH(D104,dINC!$B$7:$B$19,0),MATCH(A104,dINC!$C$2:$E$2,0)) -> -0.004871726243 | H104: -0.004871726243 | I104: 47657.63797
A105: HUF | B105: -1.284427304e+11 | C105: 0.9583333333 | D105: 3M | E105: 0.0012 | F105: -0.014925 | G105: =INDEX(dINC!$D$7:$F$19,MATCH(D105,dINC!$B$7:$B$19,0),MATCH(A105,dINC!$C$2:$E$2,0)) -> -0.004871726243 | H105: -0.004871726243 | I105: 599665411.2
A106: HUF | B106: -3087256480 | C106: 0.9583333333 | D106: 3M | E106: 0 | F106: -0.014925 | G106: =INDEX(dINC!$D$7:$F$19,MATCH(D106,dINC!$B$7:$B$19,0),MATCH(A106,dINC!$C$2:$E$2,0)) -> -0.004871726243 | H106: -0.004871726243 | I106: 14413590.56
A107: HUF | B107: 387618364.8 | C107: 0.9583333333 | D107: 3M | E107: 0.1545 | F107: -0.014925 | G107: =INDEX(dINC!$D$7:$F$19,MATCH(D107,dINC!$B$7:$B$19,0),MATCH(A107,dINC!$C$2:$E$2,0)) -> -0.004871726243 | H107: -0.004871726243 | I107: -1809688.453
A108: HUF | B108: -2217251837 | C108: 0.8333333333 | D108: 3M | E108: 0.1553 | F108: -0.014925 | G108: =INDEX(dINC!$D$7:$F$19,MATCH(D108,dINC!$B$7:$B$19,0),MATCH(A108,dINC!$C$2:$E$2,0)) -> -0.004871726243 | H108: -0.004871726243 | I108: 9001536.636
A109: HUF | B109: -306982333.9 | C109: 0.997260274 | D109: 6M | E109: 0.0012 | F109: -0.01485 | G109: =INDEX(dINC!$D$7:$F$19,MATCH(D109,dINC!$B$7:$B$19,0),MATCH(A109,dINC!$C$2:$E$2,0)) -> -0.005068001899 | H109: -0.005068001899 | I109: 1551524.621
A110: HUF | B110: 63818851.29 | C110: 0.8333333333 | D110: 9M | E110: 0 | F110: -0.014775 | G110: =INDEX(dINC!$D$7:$F$19,MATCH(D110,dINC!$B$7:$B$19,0),MATCH(A110,dINC!$C$2:$E$2,0)) -> -0.005264277555 | H110: -0.005264277555 | I110: -279966.7887
A111: HUF | B111: -1986683779 | C111: 0.8333333333 | D111: 9M | E111: 0.0007 | F111: -0.014775 | G111: =INDEX(dINC!$D$7:$F$19,MATCH(D111,dINC!$B$7:$B$19,0),MATCH(A111,dINC!$C$2:$E$2,0)) -> -0.005264277555 | H111: -0.005264277555 | I111: 8715379.021
A112: HUF | B112: 566051898.6 | C112: 0.625 | D112: 9M | E112: 0.1163 | F112: -0.014775 | G112: =INDEX(dINC!$D$7:$F$19,MATCH(D112,dINC!$B$7:$B$19,0),MATCH(A112,dINC!$C$2:$E$2,0)) -> -0.005264277555 | H112: -0.005264277555 | I112: -1862408.941
A113: HUF | B113: -2251895257 | C113: 0.8333333333 | D113: 1Y | E113: 0.0002 | F113: -0.0147 | G113: =INDEX(dINC!$D$7:$F$19,MATCH(D113,dINC!$B$7:$B$19,0),MATCH(A113,dINC!$C$2:$E$2,0)) -> -0.005460553211 | H113: -0.005460553211 | I113: 10247161.57
A114: HUF | B114: 933787.9363 | C114: 0.625 | D114: 1Y | E114: 0 | F114: -0.0147 | G114: =INDEX(dINC!$D$7:$F$19,MATCH(D114,dINC!$B$7:$B$19,0),MATCH(A114,dINC!$C$2:$E$2,0)) -> -0.005460553211 | H114: -0.005460553211 | I114: -3186.874197
A115: HUF | B115: -1.128173421e+10 | C115: 0.375 | D115: 1Y | E115: 0.001 | F115: -0.0147 | G115: =INDEX(dINC!$D$7:$F$19,MATCH(D115,dINC!$B$7:$B$19,0),MATCH(A115,dINC!$C$2:$E$2,0)) -> -0.005460553211 | H115: -0.005460553211 | I115: 23101691.24
A116: HUF | B116: 21188442.46 | C116: 0.9583333333 | D116: 2Y | E116: 0 | F116: -0.0144 | G116: =INDEX(dINC!$D$7:$F$19,MATCH(D116,dINC!$B$7:$B$19,0),MATCH(A116,dINC!$C$2:$E$2,0)) -> -0.006245655836 | H116: -0.006245655836 | I116: -126821.731
A117: HUF | B117: 2334840.918 | C117: 0.9583333333 | D117: 2Y | E117: 0 | F117: -0.0144 | G117: =INDEX(dINC!$D$7:$F$19,MATCH(D117,dINC!$B$7:$B$19,0),MATCH(A117,dINC!$C$2:$E$2,0)) -> -0.006245655836 | H117: -0.006245655836 | I117: -13975.00394
A118: HUF | B118: -4520737.723 | C118: 0.9583333333 | D118: 2Y | E118: 0.0123 | F118: -0.0144 | G118: =INDEX(dINC!$D$7:$F$19,MATCH(D118,dINC!$B$7:$B$19,0),MATCH(A118,dINC!$C$2:$E$2,0)) -> -0.006245655836 | H118: -0.006245655836 | I118: 27058.51478
A119: HUF | B119: 3969981.277 | C119: 0.8333333333 | D119: 2Y | E119: 0 | F119: -0.0144 | G119: =INDEX(dINC!$D$7:$F$19,MATCH(D119,dINC!$B$7:$B$19,0),MATCH(A119,dINC!$C$2:$E$2,0)) -> -0.006245655836 | H119: -0.006245655836 | I119: -20662.61394
A120: HUF | B120: 12169190.65 | C120: 0.625 | D120: 2Y | E120: 0 | F120: -0.0144 | G120: =INDEX(dINC!$D$7:$F$19,MATCH(D120,dINC!$B$7:$B$19,0),MATCH(A120,dINC!$C$2:$E$2,0)) -> -0.006245655836 | H120: -0.006245655836 | I120: -47502.86037
A121: HUF | B121: -1025252608 | C121: 0.125 | D121: 2Y | E121: 0 | F121: -0.0144 | G121: =INDEX(dINC!$D$7:$F$19,MATCH(D121,dINC!$B$7:$B$19,0),MATCH(A121,dINC!$C$2:$E$2,0)) -> -0.006245655836 | H121: -0.006245655836 | I121: 800421.8671
A122: HUF | B122: 231915811.3 | C122: 0.9583333333 | D122: 3Y | E122: 0 | F122: -0.0141 | G122: =INDEX(dINC!$D$7:$F$19,MATCH(D122,dINC!$B$7:$B$19,0),MATCH(A122,dINC!$C$2:$E$2,0)) -> -0.007030758461 | H122: -0.007030758461 | I122: -1562604.717
A123: HUF | B123: 19650916.75 | C123: 0.9583333333 | D123: 3Y | E123: 0 | F123: -0.0141 | G123: =INDEX(dINC!$D$7:$F$19,MATCH(D123,dINC!$B$7:$B$19,0),MATCH(A123,dINC!$C$2:$E$2,0)) -> -0.007030758461 | H123: -0.007030758461 | I123: -132404.1472
A124: HUF | B124: 314507255.3 | C124: 0.8333333333 | D124: 3Y | E124: 0 | F124: -0.0141 | G124: =INDEX(dINC!$D$7:$F$19,MATCH(D124,dINC!$B$7:$B$19,0),MATCH(A124,dINC!$C$2:$E$2,0)) -> -0.007030758461 | H124: -0.007030758461 | I124: -1842687.122
A125: HUF | B125: 2701882.664 | C125: 0.9583333333 | D125: 5Y | E125: 0 | F125: -0.0135 | G125: =INDEX(dINC!$D$7:$F$19,MATCH(D125,dINC!$B$7:$B$19,0),MATCH(A125,dINC!$C$2:$E$2,0)) -> -0.00860096371 | H125: -0.00860096371 | I125: -22270.51163
A126: HUF | B126: 24025284.97 | C126: 0.8333333333 | D126: 5Y | E126: 0 | F126: -0.0135 | G126: =INDEX(dINC!$D$7:$F$19,MATCH(D126,dINC!$B$7:$B$19,0),MATCH(A126,dINC!$C$2:$E$2,0)) -> -0.00860096371 | H126: -0.00860096371 | I126: -172200.5035
A127: HUF | B127: 103085.2689 | C127: 0.8333333333 | D127: 5Y | E127: 0.0485 | F127: -0.0135 | G127: =INDEX(dINC!$D$7:$F$19,MATCH(D127,dINC!$B$7:$B$19,0),MATCH(A127,dINC!$C$2:$E$2,0)) -> -0.00860096371 | H127: -0.00860096371 | I127: -738.8605474
A128: HUF | B128: -162626499.1 | C128: 0.625 | D128: 5Y | E128: 0 | F128: -0.0135 | G128: =INDEX(dINC!$D$7:$F$19,MATCH(D128,dINC!$B$7:$B$19,0),MATCH(A128,dINC!$C$2:$E$2,0)) -> -0.00860096371 | H128: -0.00860096371 | I128: 874215.3856
A129: HUF | B129: -269811489.4 | C129: 0.125 | D129: 5Y | E129: 0 | F129: -0.0135 | G129: =INDEX(dINC!$D$7:$F$19,MATCH(D129,dINC!$B$7:$B$19,0),MATCH(A129,dINC!$C$2:$E$2,0)) -> -0.00860096371 | H129: -0.00860096371 | I129: 290079.8536
A130: HUF | B130: 2071120981 | C130: 0.9583333333 | D130: 10Y | E130: 0 | F130: -0.012 | G130: =INDEX(dINC!$D$7:$F$19,MATCH(D130,dINC!$B$7:$B$19,0),MATCH(A130,dINC!$C$2:$E$2,0)) -> -0.005186842078 | H130: -0.005186842078 | I130: -10294970.06
A131: HUF | B131: 1383475.643 | C131: 0.9583333333 | D131: 10Y | E131: 0 | F131: -0.012 | G131: =INDEX(dINC!$D$7:$F$19,MATCH(D131,dINC!$B$7:$B$19,0),MATCH(A131,dINC!$C$2:$E$2,0)) -> -0.005186842078 | H131: =MAX(G131,MIN(0,F131-E131)) -> -0.005186842078 | I131: =B131*C131*H131 -> -6876.875109
A132: HUF | B132: 8873581558 | C132: 0.9583333333 | D132: 10Y | E132: 0.0774 | F132: -0.012 | G132: =INDEX(dINC!$D$7:$F$19,MATCH(D132,dINC!$B$7:$B$19,0),MATCH(A132,dINC!$C$2:$E$2,0)) -> -0.005186842078 | H132: -0.005186842078 | I132: -44108121.78
A133: HUF | B133: 2327071085 | C133: 0.8333333333 | D133: 10Y | E133: 0.0774 | F133: -0.012 | G133: =INDEX(dINC!$D$7:$F$19,MATCH(D133,dINC!$B$7:$B$19,0),MATCH(A133,dINC!$C$2:$E$2,0)) -> -0.005186842078 | H133: -0.005186842078 | I133: -10058458.52
A134: HUF | B134: 2899462614 | C134: 0.625 | D134: 10Y | E134: 0 | F134: -0.012 | G134: =INDEX(dINC!$D$7:$F$19,MATCH(D134,dINC!$B$7:$B$19,0),MATCH(A134,dINC!$C$2:$E$2,0)) -> -0.005186842078 | H134: -0.005186842078 | I134: -9399409.179
A135: HUF | B135: -2377895433 | C135: 0.375 | D135: 10Y | E135: 0.0002 | F135: -0.012 | G135: =INDEX(dINC!$D$7:$F$19,MATCH(D135,dINC!$B$7:$B$19,0),MATCH(A135,dINC!$C$2:$E$2,0)) -> -0.005186842078 | H135: -0.005186842078 | I135: 4625163.034
A136: HUF | B136: 162023414.6 | C136: 0.125 | D136: 10Y | E136: 0 | F136: -0.012 | G136: =INDEX(dINC!$D$7:$F$19,MATCH(D136,dINC!$B$7:$B$19,0),MATCH(A136,dINC!$C$2:$E$2,0)) -> -0.005186842078 | H136: -0.005186842078 | I136: -105048.7331
A137: HUF | B137: 3288902.632 | C137: 0.125 | D137: 10Y | E137: 0.0175 | F137: -0.012 | G137: =INDEX(dINC!$D$7:$F$19,MATCH(D137,dINC!$B$7:$B$19,0),MATCH(A137,dINC!$C$2:$E$2,0)) -> -0.005186842078 | H137: -0.005186842078 | I137: -2132.37732
A138: HUF | B138: 416887.8085 | C138: 0.9583333333 | D138: 15Y | E138: 0 | F138: -0.0105 | G138: =INDEX(dINC!$D$7:$F$19,MATCH(D138,dINC!$B$7:$B$19,0),MATCH(A138,dINC!$C$2:$E$2,0)) -> -0.001772720445 | H138: -0.001772720445 | I138: -708.2328105
A139: HUF | B139: 3395.459201 | C139: 0.8333333333 | D139: 15Y | E139: 0 | F139: -0.0105 | G139: =INDEX(dINC!$D$7:$F$19,MATCH(D139,dINC!$B$7:$B$19,0),MATCH(A139,dINC!$C$2:$E$2,0)) -> -0.001772720445 | H139: -0.001772720445 | I139: -5.015999955
A140: HUF | B140: 1999.626183 | C140: 0.997260274 | D140: 20Y | E140: 0 | F140: -0.009 | G140: =INDEX(dINC!$D$7:$F$19,MATCH(D140,dINC!$B$7:$B$19,0),MATCH(A140,dINC!$C$2:$E$2,0)) -> 0.001641401187 | H140: 0.001641401187 | I140: 3.273196493
A141: HUF | B141: 238214.9948 | C141: 0.9583333333 | D141: 20Y | E141: 0 | F141: -0.009 | G141: =INDEX(dINC!$D$7:$F$19,MATCH(D141,dINC!$B$7:$B$19,0),MATCH(A141,dINC!$C$2:$E$2,0)) -> 0.001641401187 | H141: 0.001641401187 | I141: 374.7144431
A142: HUF | B142: 7915.341696 | C142: 0.9583333333 | D142: 20Y | E142: 0.0615 | F142: -0.009 | G142: =INDEX(dINC!$D$7:$F$19,MATCH(D142,dINC!$B$7:$B$19,0),MATCH(A142,dINC!$C$2:$E$2,0)) -> 0.001641401187 | H142: 0.001641401187 | I142: 12.45090746
A143: HUF | B143: 367995.9762 | C143: 0.625 | D143: 20Y | E143: 0 | F143: -0.009 | G143: =INDEX(dINC!$D$7:$F$19,MATCH(D143,dINC!$B$7:$B$19,0),MATCH(A143,dINC!$C$2:$E$2,0)) -> 0.001641401187 | H143: 0.001641401187 | I143: 377.5181452
A144: HUF | B144: 1138.48273 | C144: 0.375 | D144: 20Y_ | E144: 0 | F144: -0.009 | G144: =INDEX(dINC!$D$7:$F$19,MATCH(D144,dINC!$B$7:$B$19,0),MATCH(A144,dINC!$C$2:$E$2,0)) -> 0.001641401187 | H144: 0.001641401187 | I144: 0.7007650896
A145: USD | B145: 1241257586 | C145: 0.9583333333 | D145: 1M | E145: 0.0674 | F145: -0.014975 | G145: =INDEX(dINC!$D$7:$F$19,MATCH(D145,dINC!$B$7:$B$19,0),MATCH(A145,dINC!$C$2:$E$2,0)) -> -0.004232400652 | H145: -0.004232400652 | I145: -5034603.606
A146: USD | B146: -160232778.1 | C146: 0.9583333333 | D146: 1M | E146: 0 | F146: -0.014975 | G146: =INDEX(dINC!$D$7:$F$19,MATCH(D146,dINC!$B$7:$B$19,0),MATCH(A146,dINC!$C$2:$E$2,0)) -> -0.004232400652 | H146: -0.004232400652 | I146: 649912.2595
A147: USD | B147: 80206.47854 | C147: 0.8333333333 | D147: 1M | E147: 0.2816 | F147: -0.014975 | G147: =INDEX(dINC!$D$7:$F$19,MATCH(D147,dINC!$B$7:$B$19,0),MATCH(A147,dINC!$C$2:$E$2,0)) -> -0.004232400652 | H147: -0.004232400652 | I147: -282.8882934
A148: USD | B148: 16078027.81 | C148: 0.375 | D148: 1M | E148: 0 | F148: -0.014975 | G148: =INDEX(dINC!$D$7:$F$19,MATCH(D148,dINC!$B$7:$B$19,0),MATCH(A148,dINC!$C$2:$E$2,0)) -> -0.004232400652 | H148: -0.004232400652 | I148: -25518.24577
A149: USD | B149: 1166186875 | C149: 0.9583333333 | D149: 3M | E149: 0 | F149: -0.014925 | G149: =INDEX(dINC!$D$7:$F$19,MATCH(D149,dINC!$B$7:$B$19,0),MATCH(A149,dINC!$C$2:$E$2,0)) -> -0.004126673224 | H149: -0.004126673224 | I149: -4611952.479
A150: USD | B150: 123766729.1 | C150: 0.625 | D150: 3M | E150: 0 | F150: -0.014925 | G150: =INDEX(dINC!$D$7:$F$19,MATCH(D150,dINC!$B$7:$B$19,0),MATCH(A150,dINC!$C$2:$E$2,0)) -> -0.004126673224 | H150: -0.004126673224 | I150: -319215.5295
A151: USD | B151: -29310273.74 | C151: 0.375 | D151: 9M | E151: 0 | F151: -0.014775 | G151: =INDEX(dINC!$D$7:$F$19,MATCH(D151,dINC!$B$7:$B$19,0),MATCH(A151,dINC!$C$2:$E$2,0)) -> -0.003809490943 | H151: -0.003809490943 | I151: 41871.45838
A152: USD | B152: -2098602876 | C152: 0.375 | D152: 9M | E152: 0 | F152: -0.014775 | G152: =INDEX(dINC!$D$7:$F$19,MATCH(D152,dINC!$B$7:$B$19,0),MATCH(A152,dINC!$C$2:$E$2,0)) -> -0.003809490943 | H152: -0.003809490943 | I152: 2997978.243
A153: USD | B153: -754027.0493 | C153: 0.375 | D153: 9M | E153: 0 | F153: -0.014775 | G153: =INDEX(dINC!$D$7:$F$19,MATCH(D153,dINC!$B$7:$B$19,0),MATCH(A153,dINC!$C$2:$E$2,0)) -> -0.003809490943 | H153: -0.003809490943 | I153: 1077.172206
A154: USD | B154: -4385518690 | C154: 0.375 | D154: 9M | E154: 0 | F154: 0 | G154: =INDEX(dINC!$D$7:$F$19,MATCH(D154,dINC!$B$7:$B$19,0),MATCH(A154,dINC!$C$2:$E$2,0)) -> -0.003809490943 | H154: 0 | I154: 0
A155: USD | B155: 12541471.65 | C155: 0.997260274 | D155: 1Y | E155: 0 | F155: -0.0147 | G155: =INDEX(dINC!$D$7:$F$19,MATCH(D155,dINC!$B$7:$B$19,0),MATCH(A155,dINC!$C$2:$E$2,0)) -> -0.003650899802 | H155: -0.003650899802 | I155: -45662.21074
A156: USD | B156: 2540704.473 | C156: 0.9583333333 | D156: 1Y | E156: 0 | F156: -0.0147 | G156: =INDEX(dINC!$D$7:$F$19,MATCH(D156,dINC!$B$7:$B$19,0),MATCH(A156,dINC!$C$2:$E$2,0)) -> -0.003650899802 | H156: -0.003650899802 | I156: -8889.363396
A157: USD | B157: 2503019.916 | C157: 0.8333333333 | D157: 1Y | E157: 0 | F157: -0.0147 | G157: =INDEX(dINC!$D$7:$F$19,MATCH(D157,dINC!$B$7:$B$19,0),MATCH(A157,dINC!$C$2:$E$2,0)) -> -0.003650899802 | H157: -0.003650899802 | I157: -7615.229095
A158: USD | B158: 21452575.51 | C158: 0.8333333333 | D158: 1Y | E158: 0 | F158: -0.0147 | G158: =INDEX(dINC!$D$7:$F$19,MATCH(D158,dINC!$B$7:$B$19,0),MATCH(A158,dINC!$C$2:$E$2,0)) -> -0.003650899802 | H158: -0.003650899802 | I158: -65267.66973
A159: USD | B159: 22.42110874 | C159: 0.8333333333 | D159: 1Y | E159: 0.365 | F159: -0.0147 | G159: =INDEX(dINC!$D$7:$F$19,MATCH(D159,dINC!$B$7:$B$19,0),MATCH(A159,dINC!$C$2:$E$2,0)) -> -0.003650899802 | H159: -0.003650899802 | I159: -0.06821435123
A160: USD | B160: 3296717.87 | C160: 0.8333333333 | D160: 1Y | E160: 0.248 | F160: -0.0147 | G160: =INDEX(dINC!$D$7:$F$19,MATCH(D160,dINC!$B$7:$B$19,0),MATCH(A160,dINC!$C$2:$E$2,0)) -> -0.003650899802 | H160: -0.003650899802 | I160: -10029.98885
A161: USD | B161: -1628536037 | C161: 0.625 | D161: 1Y | E161: 0.0088 | F161: -0.0147 | G161: =INDEX(dINC!$D$7:$F$19,MATCH(D161,dINC!$B$7:$B$19,0),MATCH(A161,dINC!$C$2:$E$2,0)) -> -0.003650899802 | H161: -0.003650899802 | I161: 3716013.684
A162: USD | B162: 361276924.4 | C162: 0.375 | D162: 1Y | E162: 0.0463 | F162: -0.0147 | G162: =INDEX(dINC!$D$7:$F$19,MATCH(D162,dINC!$B$7:$B$19,0),MATCH(A162,dINC!$C$2:$E$2,0)) -> -0.003650899802 | H162: -0.003650899802 | I162: -494619.6944
A163: USD | B163: -7426699965 | C163: 0.375 | D163: 1Y | E163: 0.008 | F163: -0.0147 | G163: =INDEX(dINC!$D$7:$F$19,MATCH(D163,dINC!$B$7:$B$19,0),MATCH(A163,dINC!$C$2:$E$2,0)) -> -0.003650899802 | H163: -0.003650899802 | I163: 10167801.54
A164: USD | B164: 2339.074011 | C164: 0.8333333333 | D164: 2Y | E164: 0.13 | F164: -0.0144 | G164: =INDEX(dINC!$D$7:$F$19,MATCH(D164,dINC!$B$7:$B$19,0),MATCH(A164,dINC!$C$2:$E$2,0)) -> -0.003016535239 | H164: -0.003016535239 | I164: -5.879915983
A165: USD | B165: 27169552.12 | C165: 0.625 | D165: 2Y | E165: 0 | F165: -0.0144 | G165: =INDEX(dINC!$D$7:$F$19,MATCH(D165,dINC!$B$7:$B$19,0),MATCH(A165,dINC!$C$2:$E$2,0)) -> -0.003016535239 | H165: -0.003016535239 | I165: -51223.69462
A166: USD | B166: 1858603459 | C166: 0.375 | D166: 2Y | E166: 0.0231 | F166: -0.0144 | G166: =INDEX(dINC!$D$7:$F$19,MATCH(D166,dINC!$B$7:$B$19,0),MATCH(A166,dINC!$C$2:$E$2,0)) -> -0.003016535239 | H166: -0.003016535239 | I166: -2102453.561
A167: USD | B167: 20943851.9 | C167: 0.8333333333 | D167: 3Y | E167: 0 | F167: -0.0141 | G167: =INDEX(dINC!$D$7:$F$19,MATCH(D167,dINC!$B$7:$B$19,0),MATCH(A167,dINC!$C$2:$E$2,0)) -> -0.002382170676 | H167: -0.002382170676 | I167: -41576.52487
A168: USD | B168: 68731286.91 | C168: 0.375 | D168: 3Y | E168: 0 | F168: -0.0141 | G168: =INDEX(dINC!$D$7:$F$19,MATCH(D168,dINC!$B$7:$B$19,0),MATCH(A168,dINC!$C$2:$E$2,0)) -> -0.002382170676 | H168: -0.002382170676 | I168: -61398.62108
A169: USD | B169: 16813.85611 | C169: 0.8333333333 | D169: 5Y | E169: 0 | F169: -0.0135 | G169: =INDEX(dINC!$D$7:$F$19,MATCH(D169,dINC!$B$7:$B$19,0),MATCH(A169,dINC!$C$2:$E$2,0)) -> -0.00111344155 | H169: -0.00111344155 | I169: -15.60103834
A170: USD | B170: -18844641.79 | C170: 0.8333333333 | D170: 5Y | E170: 0.0001 | F170: -0.0135 | G170: =INDEX(dINC!$D$7:$F$19,MATCH(D170,dINC!$B$7:$B$19,0),MATCH(A170,dINC!$C$2:$E$2,0)) -> -0.00111344155 | H170: -0.00111344155 | I170: 17485.3393
A171: USD | B171: 41550576.18 | C171: 0.125 | D171: 5Y | E171: 0 | F171: -0.0135 | G171: =INDEX(dINC!$D$7:$F$19,MATCH(D171,dINC!$B$7:$B$19,0),MATCH(A171,dINC!$C$2:$E$2,0)) -> -0.00111344155 | H171: -0.00111344155 | I171: -5783.017244
A172: USD | B172: 17925532.87 | C172: 0.625 | D172: 10Y | E172: 0.0734 | F172: -0.012 | G172: =INDEX(dINC!$D$7:$F$19,MATCH(D172,dINC!$B$7:$B$19,0),MATCH(A172,dINC!$C$2:$E$2,0)) -> 0.0004819652069 | H172: 0.0004819652069 | I172: 5399.676973
A173: USD | B173: 212602.2079 | C173: 0.125 | D173: 10Y | E173: 0 | F173: -0.012 | G173: =INDEX(dINC!$D$7:$F$19,MATCH(D173,dINC!$B$7:$B$19,0),MATCH(A173,dINC!$C$2:$E$2,0)) -> 0.0004819652069 | H173: 0.0004819652069 | I173: 12.80835839
A174: USD | B174: -269333.9021 | C174: 0.9583333333 | D174: 15Y | E174: 0.0001 | F174: -0.0105 | G174: =INDEX(dINC!$D$7:$F$19,MATCH(D174,dINC!$B$7:$B$19,0),MATCH(A174,dINC!$C$2:$E$2,0)) -> 0.002077371964 | H174: 0.002077371964 | I174: -536.193918
A175: USD | B175: 358627.1833 | C175: 0.625 | D175: 15Y | E175: 0 | F175: -0.0105 | G175: =INDEX(dINC!$D$7:$F$19,MATCH(D175,dINC!$B$7:$B$19,0),MATCH(A175,dINC!$C$2:$E$2,0)) -> 0.002077371964 | H175: 0.002077371964 | I175: 465.626285
A176: USD | B176: 273788.5828 | C176: 0.125 | D176: 15Y | E176: 0 | F176: -0.0105 | G176: =INDEX(dINC!$D$7:$F$19,MATCH(D176,dINC!$B$7:$B$19,0),MATCH(A176,dINC!$C$2:$E$2,0)) -> 0.002077371964 | H176: 0.002077371964 | I176: 71.09509073
A177: USD | B177: 35608.0088 | C177: 0.9583333333 | D177: 20Y | E177: 0 | F177: -0.009 | G177: =INDEX(dINC!$D$7:$F$19,MATCH(D177,dINC!$B$7:$B$19,0),MATCH(A177,dINC!$C$2:$E$2,0)) -> 0.003672778721 | H177: 0.003672778721 | I177: 125.3311563
A178: USD | B178: -1280904.856 | C178: 0.8333333333 | D178: 20Y | E178: 0.003 | F178: -0.009 | G178: =INDEX(dINC!$D$7:$F$19,MATCH(D178,dINC!$B$7:$B$19,0),MATCH(A178,dINC!$C$2:$E$2,0)) -> 0.003672778721 | H178: 0.003672778721 | I178: -3920.400081
A179: USD | B179: -6988959.74 | C179: 0.625 | D179: 20Y | E179: 0.002 | F179: -0.009 | G179: =INDEX(dINC!$D$7:$F$19,MATCH(D179,dINC!$B$7:$B$19,0),MATCH(A179,dINC!$C$2:$E$2,0)) -> 0.003672778721 | H179: 0.003672778721 | I179: -16043.06413
A180: USD | B180: 88963.46136 | C180: 0.9583333333 | D180: 20Y_ | E180: 0 | F180: -0.009 | G180: =INDEX(dINC!$D$7:$F$19,MATCH(D180,dINC!$B$7:$B$19,0),MATCH(A180,dINC!$C$2:$E$2,0)) -> 0.003672778721 | H180: 0.003672778721 | I180: 313.1288116
A181: USD | B181: 1510554.889 | C181: 0.625 | D181: 20Y_ | E181: 0 | F181: -0.009 | G181: =INDEX(dINC!$D$7:$F$19,MATCH(D181,dINC!$B$7:$B$19,0),MATCH(A181,dINC!$C$2:$E$2,0)) -> 0.003672778721 | H181: 0.003672778721 | I181: 3467.458658
A182: USD | B182: -7424757.429 | C182: 0.375 | D182: 20Y_ | E182: 0.002 | F182: -0.009 | G182: =INDEX(dINC!$D$7:$F$19,MATCH(D182,dINC!$B$7:$B$19,0),MATCH(A182,dINC!$C$2:$E$2,0)) -> 0.003672778721 | H182: 0.003672778721 | I182: -10226.05916
A183: USD | B183: -6543646.849 | C183: 0.125 | D183: 20Y_ | E183: 0.002 | F183: -0.009 | G183: =INDEX(dINC!$D$7:$F$19,MATCH(D183,dINC!$B$7:$B$19,0),MATCH(A183,dINC!$C$2:$E$2,0)) -> 0.003672778721 | H183: 0.003672778721 | I183: -3004.170863

Sheet Szimuláció
A1: Sorszám | B1: dINCHUF | C1: dINCEUR | D1: dINCUSD | E1: dINCPortfolió | G1: dINCHUF VaR | H1: dINCEUR VaR | I1: dINCUSD VaR | J1: dINCdiverz. nélkül | K1: dINCdiverz. | L1: D%dINC
A2: 1 | B2: -2084262571 | C2: 1669798946 | D2: -20940322.61 | E2: -435403947.3 | G2: =PERCENTILE(B:B,0.01) -> -7496902088 | H2: =PERCENTILE(C:C,0.01) -> -4884236084 | I2: =PERCENTILE(D:D,0.01) -> -74963172.24 | J2: =G2+H2+I2 -> -1.245610134e+10 | K2: =PERCENTILE(E:E,0.01) -> -8335259122 | L2: =(K2-J2)/J2 -> -0.3308292144
A3: 2 | B3: -1784389682 | C3: 96872946.48 | D3: -17702229.32 | E3: -1705218964
A4: 3 | B4: 517719636.5 | C4: -584739928.5 | D4: 15113481.74 | E4: -51906810.34
A5: 4 | B5: 908325426.2 | C5: 63489451.87 | D5: -9662422.026 | E5: 962152456.1
A6: 5 | B6: 2277995974 | C6: -128371952 | D6: -6485974.934 | E6: 2143138047 | G6: Futtatás kezdete | H6: 2023-10-09T15:35:34
A7: 6 | B7: -1236288980 | C7: 1250271098 | D7: -9703901.575 | E7: 4278216.328 | G7: Futtatás vége | H7: 2023-10-09T15:37:04
A8: 7 | B8: 3109068967 | C8: 887820988.9 | D8: 6152940.392 | E8: 4003042896 | G8: Futtatási idő | H8: =H7-H6 -> 00:01:30
A9: 8 | B9: 2664632532 | C9: 1602255012 | D9: -28200557.99 | E9: 4238686987
A10: 9 | B10: 1665980917 | C10: 1676295795 | D10: 14016340.64 | E10: 3356293053
A11: 10 | B11: -2083145619 | C11: -1250805197 | D11: 11222232.35 | E11: -3322728584
A12: 11 | B12: -2717890958 | C12: 1406124883 | D12: -23485200.74 | E12: -1335251276
A13: 12 | B13: -639152369.2 | C13: -877370779.4 | D13: 11201870.94 | E13: -1505321278
A14: 13 | B14: -1134130805 | C14: -2672900668 | D14: 7835727.954 | E14: -3799195745
A15: 14 | B15: 545975973.6 | C15: -806807350.7 | D15: 19890724.89 | E15: -240940652.2
A16: 15 | B16: -197009660.5 | C16: 563325701.2 | D16: 1198447.332 | E16: 367514488
A17: 16 | B17: 1791761984 | C17: -2911378202 | D17: 9647826.198 | E17: -1109968392
A18: 17 | B18: 605184043.6 | C18: -1895963721 | D18: -34214409.66 | E18: -1324994087
A19: 18 | B19: -643359397.3 | C19: 744170222.7 | D19: -44687263.43 | E19: 56123561.9
A20: 19 | B20: 666762538.1 | C20: 444508635.6 | D20: -42213084.48 | E20: 1069058089
A21: 20 | B21: -1567103921 | C21: 3215026442 | D21: -74600645.49 | E21: 1573321876
A22: 21 | B22: -3636448383 | C22: -774585222.1 | D22: 12848168.44 | E22: -4398185437
A23: 22 | B23: -3214058399 | C23: 1072663231 | D23: -34554264.38 | E23: -2175949433
A24: 23 | B24: -2466861435 | C24: 2975437817 | D24: -20923540.15 | E24: 487652842
A25: 24 | B25: -3551286124 | C25: -601626686.6 | D25: -1663318.921 | E25: -4154576129
A26: 25 | B26: -6363143537 | C26: 156766304.3 | D26: 24472110.22 | E26: -6181905123
A27: 26 | B27: -652767598.3 | C27: 1419818830 | D27: -45096133.42 | E27: 721955098.1
A28: 27 | B28: 418129039.1 | C28: -1452841940 | D28: 4727054.123 | E28: -1029985847
A29: 28 | B29: -1339307065 | C29: 2072439902 | D29: 5260667.641 | E29: 738393504.3
A30: 29 | B30: 231343146.2 | C30: -1408965545 | D30: 24274574.61 | E30: -1153347824
A31: 30 | B31: 1585634622 | C31: -1405525607 | D31: 152846.2978 | E31: 180261861.7
A32: 31 | B32: -2999704970 | C32: 2951334099 | D32: -89219119.32 | E32: -137589991.1
A33: 32 | B33: -4434367508 | C33: -177008373.1 | D33: 81160.19532 | E33: -4611294721
A34: 33 | B34: 1415713373 | C34: -3720175642 | D34: 2044644.963 | E34: -2302417624
A35: 34 | B35: 1207355545 | C35: -351603888.8 | D35: 1721910.72 | E35: 857473566.7
A36: 35 | B36: -17074859.98 | C36: 1925769840 | D36: -54048922.28 | E36: 1854646057
A37: 36 | B37: 724521298.1 | C37: -79593406.07 | D37: 3377168.293 | E37: 648305060.3
A38: 37 | B38: -3554474587 | C38: -151570323.5 | D38: 13010150.34 | E38: -3693034760
A39: 38 | B39: -326553860.8 | C39: -232422942.8 | D39: 2690841.345 | E39: -556285962.3
A40: 39 | B40: 1506083859 | C40: 799210601.1 | D40: 13551537.94 | E40: 2318845998
A41: 40 | B41: 3434443647 | C41: 55822450.35 | D41: 7774317.159 | E41: 3498040414
A42: 41 | B42: 563002588.3 | C42: -16084785.9 | D42: 6343206.391 | E42: 553261008.8
A43: 42 | B43: 2597730195 | C43: -1821009625 | D43: 14327505.38 | E43: 791048074.7
A44: 43 | B44: -2380270312 | C44: -284301959.2 | D44: -19052443.63 | E44: -2683624715
A45: 44 | B45: 3052174964 | C45: 651933065.8 | D45: 1726507.096 | E45: 3705834537
A46: 45 | B46: -5016052918 | C46: 587318145.2 | D46: -21639013.54 | E46: -4450373786
A47: 46 | B47: 2700536888 | C47: -218283050.8 | D47: 6530691.329 | E47: 2488784528
A48: 47 | B48: 712066743.7 | C48: -425229868.9 | D48: 709147.1195 | E48: 287546021.9
A49: 48 | B49: -1649280444 | C49: -94348626.78 | D49: 12431273.24 | E49: -1731197797
A50: 49 | B50: 1086269011 | C50: 802755686.1 | D50: 3258525.673 | E50: 1892283222
A51: 50 | B51: -3674001472 | C51: -378034418.2 | D51: -33412246.08 | E51: -4085448136
A52: 51 | B52: 2635040942 | C52: -1361125864 | D52: -13911032.1 | E52: 1260004046
A53: 52 | B53: 616494462.2 | C53: -1575081781 | D53: 5231296.561 | E53: -953356021.8
A54: 53 | B54: -712974597.6 | C54: 1418081540 | D54: -58552199.74 | E54: 646554742.2
A55: 54 | B55: 1127883687 | C55: -167019386.7 | D55: -830005.6167 | E55: 960034294.8
A56: 55 | B56: 1406541798 | C56: -760207637.9 | D56: 5507019.647 | E56: 651841179.5
A57: 56 | B57: 2684169397 | C57: 1772887582 | D57: -37998000.52 | E57: 4419058978
A58: 57 | B58: 2484995855 | C58: 411814584.2 | D58: -8246534.359 | E58: 2888563905
A59: 58 | B59: 2763285498 | C59: 72200971.8 | D59: -15009347.24 | E59: 2820477123
A60: 59 | B60: -1139186363 | C60: -545666490.8 | D60: -11619991.93 | E60: -1696472846
A61: 60 | B61: -608623942.1 | C61: 611665089.3 | D61: 7377408.871 | E61: 10418556.13
A62: 61 | B62: 518793504.7 | C62: -4920956157 | D62: 26201249.58 | E62: -4375961403
A63: 62 | B63: 1762122406 | C63: -400842502.7 | D63: 8428807.383 | E63: 1369708710
A64: 63 | B64: -2549079188 | C64: 109466889.1 | D64: 1579860.062 | E64: -2438032438
A65: 64 | B65: 2316591122 | C65: -1332910131 | D65: 10157486.69 | E65: 993838478.1
A66: 65 | B66: -2049766714 | C66: -245099593.9 | D66: -9096258.997 | E66: -2303962567
A67: 66 | B67: 2268824600 | C67: 255595836.7 | D67: -22562575.81 | E67: 2501857861
A68: 67 | B68: 605299933.3 | C68: 1789687216 | D68: -5948364.885 | E68: 2389038785
A69: 68 | B69: 356372583.9 | C69: -561525830.2 | D69: -3169828.7 | E69: -208323075
A70: 69 | B70: -570946888.7 | C70: -175812319.2 | D70: 1347905.208 | E70: -745411302.7
A71: 70 | B71: -4310397338 | C71: -806041388.4 | D71: -16849669.33 | E71: -5133288396
A72: 71 | B72: 1090747188 | C72: -1157838408 | D72: 24651367.83 | E72: -42439851.73
A73: 72 | B73: -1566507057 | C73: 775031440.4 | D73: -21280616.76 | E73: -812756232.9
A74: 73 | B74: -1552063277 | C74: -61534964.74 | D74: -31493772.91 | E74: -1645092014
A75: 74 | B75: -465262842.6 | C75: -711530955.4 | D75: -13238513.43 | E75: -1190032311
A76: 75 | B76: -2629618813 | C76: -521335665.4 | D76: -45430776.38 | E76: -3196385255
A77: 76 | B77: -278691994 | C77: -956773320.2 | D77: 16355634.23 | E77: -1219109680
A78: 77 | B78: -3615495799 | C78: 1910725176 | D78: -7745635.443 | E78: -1712516259
A79: 78 | B79: 1404218682 | C79: 551473134.9 | D79: 7473720.042 | E79: 1963165537
A80: 79 | B80: 1379400037 | C80: -543521494.6 | D80: -9921194.212 | E80: 825957348.7
A81: 80 | B81: 2172733827 | C81: 1852255458 | D81: -31705517.45 | E81: 3993283768
A82: 81 | B82: -4265399287 | C82: 1451051124 | D82: -18652877.79 | E82: -2833001041
A83: 82 | B83: -1558672952 | C83: 1423196900 | D83: -9879922.771 | E83: -145355974.2
A84: 83 | B84: -3129431366 | C84: -835452508.4 | D84: -152272.956 | E84: -3965036148
A85: 84 | B85: 2457102632 | C85: 1011616499 | D85: 271012.8721 | E85: 3468990144
A86: 85 | B86: -2374038156 | C86: -1080765175 | D86: 17402885.25 | E86: -3437400445
A87: 86 | B87: 59722943.03 | C87: -1767288025 | D87: 6029387.952 | E87: -1701535694
A88: 87 | B88: -2530125965 | C88: 312090333 | D88: -17724686.4 | E88: -2235760318
A89: 88 | B89: -856850602.8 | C89: 1653871047 | D89: -24636719.06 | E89: 772383724.7
A90: 89 | B90: 405653020.3 | C90: 2494849038 | D90: -23811464.24 | E90: 2876690594
A91: 90 | B91: 1607363919 | C91: 202411929.5 | D91: -25759999.1 | E91: 1784015850
A92: 91 | B92: -2094232605 | C92: 974711672.4 | D92: -7610583.549 | E92: -1127131517
A93: 92 | B93: -2433973492 | C93: 234730425.4 | D93: -32277790.2 | E93: -2231520856
A94: 93 | B94: -576394958.6 | C94: 1771545611 | D94: -26427508 | E94: 1168723144
A95: 94 | B95: 2574042206 | C95: 458072932.9 | D95: 5864495.705 | E95: 3037979635
A96: 95 | B96: 131371674.7 | C96: -97043729.32 | D96: 1923388.294 | E96: 36251333.72
A97: 96 | B97: -1285503383 | C97: 695312145.6 | D97: -77007899.86 | E97: -667199137.2
A98: 97 | B98: 2709309801 | C98: -1841571389 | D98: 27318114.05 | E98: 895056526.4
A99: 98 | B99: -318680397 | C99: 616876096.6 | D99: -52173111.73 | E99: 246022587.9
A100: 99 | B100: 2844649451 | C100: -578202567.7 | D100: -12655926.28 | E100: 2253790957
A101: 100 | B101: -3352427968 | C101: -1964507919 | D101: 5057779.239 | E101: -5311878108
A102: 101 | B102: 1699991913 | C102: 1512187044 | D102: -27126607.16 | E102: 3185052349
A103: 102 | B103: -1954459127 | C103: 922959987 | D103: 9224389.848 | E103: -1022274750
A104: 103 | B104: 2258629892 | C104: -205784909 | D104: 496424.8982 | E104: 2053341408
A105: 104 | B105: 470711933.8 | C105: 1052857399 | D105: 8150735.078 | E105: 1531720068
A106: 105 | B106: -590029732.1 | C106: -3220602831 | D106: 29026692.5 | E106: -3781605871
A107: 106 | B107: -2039732883 | C107: -1059925916 | D107: 22101422.9 | E107: -3077557376
A108: 107 | B108: -3346688024 | C108: -3261757632 | D108: 29346531.93 | E108: -6579099124
A109: 108 | B109: -1308766702 | C109: -2914823343 | D109: 19687684.06 | E109: -4203902361
A110: 109 | B110: -6219902271 | C110: 687181625.3 | D110: -21539293.18 | E110: -5554259939
A111: 110 | B111: 1849917979 | C111: 661915317 | D111: -34743896.48 | E111: 2477089400
A112: 111 | B112: 2208295057 | C112: 1734634312 | D112: -28297660.47 | E112: 3914631709
A113: 112 | B113: 2755827296 | C113: 1064461894 | D113: -43584225.97 | E113: 3776704964
A114: 113 | B114: 2676775764 | C114: -2833300646 | D114: 25415444.84 | E114: -131109436.7
A115: 114 | B115: 2935237812 | C115: -3901153420 | D115: 21283131.93 | E115: -944632475.6
A116: 115 | B116: 1903531633 | C116: 1071681704 | D116: -31381911 | E116: 2943831426
A117: 116 | B117: -4957354637 | C117: 2387793289 | D117: -3205977.65 | E117: -2572767326
A118: 117 | B118: 652362165.1 | C118: -2292393267 | D118: 14544858.99 | E118: -1625486243
A119: 118 | B119: 1596380790 | C119: 428586947.7 | D119: -3999561.62 | E119: 2020968176
A120: 119 | B120: 2767044854 | C120: 295957080.1 | D120: -10036281 | E120: 3052965653
A121: 120 | B121: -3964802828 | C121: 14513456.28 | D121: -17933429.73 | E121: -3968222801
A122: 121 | B122: -2680515426 | C122: -4150745665 | D122: 11292728.48 | E122: -6819968362
A123: 122 | B123: 2126185878 | C123: 727379303 | D123: -23802528.84 | E123: 2829762652
A124: 123 | B124: 1950217876 | C124: -1357134979 | D124: -33388449.06 | E124: 559694447.6
A125: 124 | B125: 2658893936 | C125: -265307019.8 | D125: 560342.4119 | E125: 2394147258
A126: 125 | B126: 1347035886 | C126: 553614734.8 | D126: 7056923.578 | E126: 1907707545
A127: 126 | B127: -4107760173 | C127: 911870899.2 | D127: 2902784.655 | E127: -3192986489
A128: 127 | B128: -5024202268 | C128: 1592334915 | D128: -44102423.41 | E128: -3475969777
A129: 128 | B129: -333444401.1 | C129: -371888119.7 | D129: -36680680.41 | E129: -742013201.1
A130: 129 | B130: 3032402692 | C130: -841595906.1 | D130: 8339676.031 | E130: 2199146462
A131: 130 | B131: -822827156.8 | C131: -448520624.6 | D131: -16128045.43 | E131: -1287475827
A132: 131 | B132: 2846073012 | C132: 1043185364 | D132: -36569987.71 | E132: 3852688388
A133: 132 | B133: 1745521110 | C133: -218494357.9 | D133: -15459203.68 | E133: 1511567549
A134: 133 | B134: 160654035.2 | C134: -1448357409 | D134: 5366130.835 | E134: -1282337243
A135: 134 | B135: -1145269580 | C135: -667034180.5 | D135: 26586096.86 | E135: -1785717664
A136: 135 | B136: 835826601.6 | C136: -1459937258 | D136: 860218.1291 | E136: -623250438.5
A137: 136 | B137: 2833403084 | C137: 2034361063 | D137: 15032212.34 | E137: 4882796359
A138: 137 | B138: -3969459083 | C138: -272351205.6 | D138: -18820708.21 | E138: -4260630997
A139: 138 | B139: -1322199834 | C139: -765637056.4 | D139: 22330529.66 | E139: -2065506361
A140: 139 | B140: -2496489550 | C140: -339291788.2 | D140: -27907191.15 | E140: -2863688529
A141: 140 | B141: -2086957356 | C141: 3107814490 | D141: -57747386.88 | E141: 963109746.7
A142: 141 | B142: -1277720337 | C142: -356467218.8 | D142: 6387218.978 | E142: -1627800337
A143: 142 | B143: 2515994485 | C143: 1367840508 | D143: 9920868.477 | E143: 3893755862
A144: 143 | B144: -658740911.6 | C144: -1864898216 | D144: 15332048.2 | E144: -2508307080
A145: 144 | B145: 2680171148 | C145: -1106530913 | D145: -6278580.394 | E145: 1567361654
A146: 145 | B146: -1129577843 | C146: 1751979560 | D146: 2042820.96 | E146: 624444537.7
A147: 146 | B147: -1548108991 | C147: 1036290519 | D147: -14825812.17 | E147: -526644284.1
A148: 147 | B148: -1954129490 | C148: 3397447435 | D148: -28901321.5 | E148: 1414416623
A149: 148 | B149: 2787213529 | C149: 1369680634 | D149: -35119101.5 | E149: 4121775062
A150: 149 | B150: -3756087005 | C150: 99306650.91 | D150: -35611089.42 | E150: -3692391443
A151: 150 | B151: 1549479787 | C151: 8881100.174 | D151: -68313169.25 | E151: 1490047718
A152: 151 | B152: 1624946751 | C152: -1475379153 | D152: 5941939.115 | E152: 155509537.6
A153: 152 | B153: 1461566755 | C153: -1038841430 | D153: -20975390.17 | E153: 401749935.6
A154: 153 | B154: 2427757280 | C154: -1186157881 | D154: -6928625.084 | E154: 1234670774
A155: 154 | B155: -890648825 | C155: 4062408119 | D155: -82441583.74 | E155: 3089317710
A156: 155 | B156: -1787252634 | C156: -2246366881 | D156: -7447987.297 | E156: -4041067502
A157: 156 | B157: 1939266056 | C157: -767071664.3 | D157: 13016517.08 | E157: 1185210908
A158: 157 | B158: 2545372452 | C158: -693126972.4 | D158: 3930298.938 | E158: 1856175779
A159: 158 | B159: -6441425839 | C159: 1162993371 | D159: -14862434.22 | E159: -5293294902
A160: 159 | B160: -1053209493 | C160: 467302670.2 | D160: 3621305.471 | E160: -582285517.3
A161: 160 | B161: -1309945935 | C161: -2207437627 | D161: 21744586.59 | E161: -3495638975
A162: 161 | B162: 2595382172 | C162: -1391601363 | D162: -6814339.335 | E162: 1196966470
A163: 162 | B163: -6278746381 | C163: -794153115.8 | D163: -17262634.27 | E163: -7090162132
A164: 163 | B164: 2451845671 | C164: -1948851834 | D164: 15410870.95 | E164: 518404708.1
A165: 164 | B165: 2752035751 | C165: -1443689424 | D165: 9348207.692 | E165: 1317694534
A166: 165 | B166: 2347470637 | C166: 1491887816 | D166: -26350613.92 | E166: 3813007839
A167: 166 | B167: 2728462194 | C167: -389506858.2 | D167: -22789265.9 | E167: 2316166070
A168: 167 | B168: -2455372194 | C168: -276409678.8 | D168: 4574109.966 | E168: -2727207763
A169: 168 | B169: 2337522337 | C169: 2287845322 | D169: -68283017.31 | E169: 4557084642
A170: 169 | B170: 2291432417 | C170: -1461672996 | D170: 8208660.702 | E170: 837968081.7
A171: 170 | B171: -2341674889 | C171: 384961618.3 | D171: 935367.7058 | E171: -1955777903
A172: 171 | B172: -2320779938 | C172: -399042682.8 | D172: -56852733.29 | E172: -2776675354
A173: 172 | B173: 1605285114 | C173: -2012797301 | D173: 27869003.93 | E173: -379643182.6
A174: 173 | B174: -2155083513 | C174: -282875686.2 | D174: -2856297.792 | E174: -2440815497
A175: 174 | B175: 2652339293 | C175: 1604627026 | D175: -22425950.38 | E175: 4234540369
A176: 175 | B176: -6101158050 | C176: 702780567.1 | D176: 2707136.467 | E176: -5395670346
A177: 176 | B177: 1688281328 | C177: -742927301.3 | D177: 5743092.791 | E177: 951097120
A178: 177 | B178: 2659070268 | C178: -239270269.5 | D178: 16091828.24 | E178: 2435891826
A179: 178 | B179: 2012228061 | C179: 2835474073 | D179: -35988138.79 | E179: 4811713995
A180: 179 | B180: 1407728591 | C180: 1343202557 | D180: -38243036.3 | E180: 2712688112
A181: 180 | B181: 1646888819 | C181: 115856798.8 | D181: 7625064.448 | E181: 1770370682
A182: 181 | B182: 1945844284 | C182: -614679872.7 | D182: 4484433.731 | E182: 1335648845
A183: 182 | B183: -912711726.3 | C183: 806007350.3 | D183: -21861018.62 | E183: -128565394.6
A184: 183 | B184: 806655582.5 | C184: -2516327978 | D184: 6357835.011 | E184: -1703314560
A185: 184 | B185: 1568816533 | C185: -946006343 | D185: 3690595.484 | E185: 626500785.2
A186: 185 | B186: -4162531201 | C186: -781841316.7 | D186: 20043609.53 | E186: -4924328908
A187: 186 | B187: -564471270.4 | C187: -2010106391 | D187: 28093579.44 | E187: -2546484082
A188: 187 | B188: -2938612150 | C188: 335366282.9 | D188: -27762172.83 | E188: -2631008040
A189: 188 | B189: -386319815.8 | C189: -70017267.85 | D189: 645387.7583 | E189: -455691695.9
A190: 189 | B190: 2750326188 | C190: -1941152629 | D190: 3528125.863 | E190: 812701684.3
A191: 190 | B191: 1829713932 | C191: -1300223534 | D191: -23847491.56 | E191: 505642906.3
A192: 191 | B192: -3060148761 | C192: -1023092111 | D192: 7268814.319 | E192: -4075972057
A193: 192 | B193: -429057274.8 | C193: -1675964779 | D193: 7012030.85 | E193: -2098010023
A194: 193 | B194: -1359206939 | C194: 1110418716 | D194: -32196652.8 | E194: -280984875.7
A195: 194 | B195: 2932424998 | C195: 1873940875 | D195: -5869589.835 | E195: 4800496283
A196: 195 | B196: 1166313032 | C196: -2004708932 | D196: -1632988.109 | E196: -840028888.2
A197: 196 | B197: 2722179424 | C197: -590175239.3 | D197: -9826578.659 | E197: 2122177606
A198: 197 | B198: 3094170568 | C198: -1753108413 | D198: 2119612.34 | E198: 1343181768
A199: 198 | B199: 2481371953 | C199: -2062171835 | D199: 26919665.6 | E199: 446119783.1
A200: 199 | B200: -1278468341 | C200: -657581278 | D200: -34981423.07 | E200: -1971031042
... 9801 more rows
